Workbook

Sheet INTRODUCTION
B1: A Template for You to Develop Sampling Plans for the NTD Sampling Method
B3: What can I do with this template?
B5: You can use it to develop template sampling plans for obtaining annual data on unlinked passenger trips (UPT) and passenger miles traveled (PMT) for a particular mode and type of service. When you follow the steps for this template and the guidance in the NTD Sampling Manual, the resulting sampling plans meet FTA's 95% confidence and 10% precision levels.
B7: What do I need to know before using this template?
B9: You should go over Subsection 54 of the NTD Sampling Manual, which is available at https://www.transit.dot.gov/ntd/ntd-sampling-manual .
B11: What is in the content of this template?
B13: This template consists of six worksheets:
B15: a) INTRODUCTION: You should go over the general directions in this worksheet to using this template.
B17: b) INPUT: You must use this worksheet to enter your data.
B19: c) SAMPLING PLANS: You must go there to see the sampling plans you have developed after you have entered your data into INPUT.
B21: d) CALCULATIONS: You do not need to go there for using this template. If you are interested, it does provide a number of characteristics of your service as reflected in the information you enter into INPUT.
B23: e) REVISION: You do not need to use the information in this worksheet for developing this set of template sampling plans. You will need to use it in the future to determine whether you need to revise this set of template sampling plans.
B25: f) RANDOM SELECTOR TOOL: You can use this to select a random sample given your complete list of trips.
B27: What information do I need to use this template?
B29: You must have a set of sample data collected from the mode and type of service for which you would like to have a new sampling plan that reflects its conditions.
B31: How do I enter the information?
B33: You must follow the steps in INPUT and enter the information accordingly.
B35: How do I use the resulting sampling plans?
B37: You should follow the NTD Sampling Manual in using the template sampling plans. SAMPLING PLANS also describes the options.
B39: Is there an example of using this template that I can take a look at before I use it myself?
B41: "The NTD Sampling Template with Sample Data.xls" at https://www.transit.dot.gov/ntd/ntd-sampling-template-data-downloadable-excel-file illustrates the use of this template with real sample data.

Sheet INPUT
B1: Input
B3: Before you start, gather your data from your prior year sample. You must at least have UPT and PMT. Date, ID, PPMT, and Group are all optional.
B5: A. Common Data
B7: 1. To use this template, enter your prior year sample data for both UPT and PMT in section E below.
B9: a) Enter UPT data in column D
B10: b) Enter PMT data in column E
B11: c) Start in row 71.
B13: It is critical that you enter the data in the right columns!
B15: 2. You may choose to enter some identification information for your sample:
B17: a) The dates on which your sample data were collected in column B, "Date".
B18: b) Some other identification, e.g., trip number, trip time, etc., in column C, "ID".
B20: B. Group Size
B22: 1. Most agencies do not use route grouping. If you do not use route grouping, skip this section. The NTD Sampling Manual discusses route grouping in the section "Route Grouping Option". If you choose to use route grouping, you must also enter three additional pieces of information:
B24: a) The name of the group to which each vehicle trip in the sample belongs:
B26: i) Enter the group names in column G starting in row 71.
B27: ii) You may have up to 10 distinct groups. However, using more than 3 groups will usually add complexity without making the sample more efficient.
B28: iii) The names can be numeric or text.
B29: iv) The names automatically appear in ranges D33:M33 and D38:M38 in this sheet, in range E6:N6 in CALCULATIONS, and in range F7:O7 in SAMPLING PLANS.
B31: b) For each group, enter the number of vehicle trips in the group during the year (or other period) you collected the sample data you are entering below. This is the number for the entire period, not just in the sample itself! After you enter the sample data below, come back and enter the group size (number of vehicle trips) in cells D34:M34. | P31: The tables in P33:Y34 and P38:Y39 are only used for plan revision. If you are revising your plan, follow the instructions in the REVISION tab. Otherwise leave these tables blank.
D32: =uniqueitems(Group,FALSE) -> Short Routes | E32: Medium Routes | F32: Long Routes | G32: 0 | P32: =uniqueitems(Group_orig,FALSE) -> 0 | Q32: 0 | R32: 0 | S32: 0 | T32: 0 | U32: 0 | V32: 0 | W32: 0 | X32: 0 | Y32: 0
B33: i) Group Names | D33: =IF(ISERROR(D32),"",IF(D32=0,"",D32)) -> Short Routes | E33: Medium Routes | F33: Long Routes | N33: ALL | P33: =IF(ISERROR(P32),"",IF(P32=0,"",P32)) ->  | Z33: ALL
B34: ii) Group Size | D34: 109685 | E34: 331033 | F34: 35325 | N34: =+IF(SUM(D34:M34)=0," ",SUM(D34:M34)) -> 476043 | Z34: =+IF(SUM(P34:Y34)=0," ",SUM(P34:Y34)) -> 
B36: c) For each group, enter the number of vehicle trips you expect to operate during the coming sample year. This is the number for the entire year, not just in the sample itself! After you enter the sample data below, come back and enter the group size (number of vehicle trips) in cells D39:M39.
B38: i) Group Names | D38: =+D33 -> Short Routes | E38: =+E33 -> Medium Routes | F38: Long Routes | N38: ALL | P38: =+P33 ->  | Q38: =+Q33 -> 
B39: ii) Group Size | D39: 109685 | E39: 331033 | F39: 35325 | N39: =+IF(SUM(D39:M39)=0," ",SUM(D39:M39)) -> 476043
B41: 2. It is critical that:
B43: a) You enter group size in the same service units as you have chosen for your template sampling plans. For example, if you want your sample size in one-way bus trips, group size must be in one-way bus trips as well. For non-scheduled modes, use vehicle days instead of vehicle trips.
B44: b) You enter group size data in the right cells to match group names.
B46: C. PPMT Data (uncommon)
B48: 1. If you choose to consider the PPMT option, you must also enter your sample data for PPMT in column F starting in row 71.
B50: D. Is 100% Count of UPT Available by Service Group?
B52: 1. If 100% counts of UPT are available by service group, enter 1 in cell M52. If not, enter 0. If you are not using grouping, leave M52 blank. | M52: 1
B54: E. Sample Data
B56: 1. We suggest that you start by organizing your prior year sample data for Date, ID, UPT, PMT, PPMT, and Group side by side in a separate spreadsheet.
B58: 2. Copy the full range of the sample data from this separate spreadsheet.
B60: 3. Paste the sample data as follows:
B62: a) Click cell B71 if you include the two identification columns and cell D71 otherwise
B63: b) Right Click
B64: c) Locate Paste Options
B65: d) Select Paste Values
B66: e) Click OK.
B68: 4. Make sure that all data on UPT, PMT, PPMT, and Group from other applications are cleared at the bottom.
B69: Once you have entered all required data on this tab, proceed to the SAMPLING PLANS tab. | J69: ORIGINAL SAMPLING YEAR DATA: only use this table when you are revising your sampling plan as described in "Revision" in the manual. Otherwise leave it blank.
B70: Date | C70: ID | D70: UPT | E70: PMT | F70: PPMT | G70: Group | J70: Date | K70: ID | L70: UPT | M70: PMT | N70: PPMT | O70: Group
B71: 2006-01-02 | C71: 15:02:00 | D71: 37 | E71: 126.2 | F71: 358.932 | G71: Short Routes
B72: 2006-01-02 | C72: 16:30:00 | D72: 33 | E72: 248 | F72: 449.3503842 | G72: Medium Routes
B73: 2006-01-02 | C73: 14:49:00 | D73: 23 | E73: 83.8 | F73: 283.8424527 | G73: Medium Routes
B74: 2006-01-04 | C74: 14:40:00 | D74: 13 | E74: 58.3 | F74: 152.6472012 | G74: Medium Routes
B75: 2006-01-04 | C75: 16:41:00 | D75: 20 | E75: 122.7 | F75: 289.8349202 | G75: Medium Routes
B76: 2006-01-04 | C76: 5:41PM | D76: 27 | E76: 206.1 | F76: 456.0085306 | G76: Medium Routes
B77: 2006-01-06 | C77: 5:44AM | D77: 18 | E77: 98.6 | F77: 311.2600239 | G77: Medium Routes
B78: 2006-01-06 | C78: 7:30PM | D78: 4 | E78: 16.7 | F78: 58.15688734 | G78: Medium Routes
B79: 2006-01-06 | C79: 9:07PM | D79: 12 | E79: 34.4 | F79: 161.1726272 | G79: Medium Routes
B80: 2006-01-08 | C80: 2:23PM | D80: 42 | E80: 184.9 | F80: 726.2733891 | G80: Medium Routes
B81: 2006-01-08 | C81: 10:23AM | D81: 22 | E81: 111.6 | F81: 380.4289181 | G81: Medium Routes
B82: 2006-01-08 | C82: 3:10PM | D82: 19 | E82: 98.9 | F82: 176.663536 | G82: Short Routes
B83: 2006-01-10 | C83: 9:59PM | D83: 2 | E83: 19.6 | F83: 29.07844367 | G83: Medium Routes
B84: 2006-01-10 | C84: 6:13AM | D84: 16 | E84: 73.5 | F84: 232.6275493 | G84: Medium Routes
B85: 2006-01-10 | C85: 6:50PM | D85: 5 | E85: 26.5 | F85: 62.40827273 | G85: Medium Routes
B86: 2006-01-12 | C86: 12:33PM | D86: 35 | E86: 150.3 | F86: 527.9795514 | G86: Medium Routes
B87: 2006-01-12 | C87: 11:49AM | D87: 67 | E87: 292.6 | F87: 1452.933859 | G87: Long Routes
B88: 2006-01-14 | C88: 9:46AM | D88: 25 | E88: 76.9 | F88: 298.1997858 | G88: Medium Routes
B89: 2006-01-14 | C89: 12:10PM | D89: 3 | E89: 16.2 | F89: 33.39567166 | G89: Medium Routes
B90: 2006-01-14 | C90: 4:20PM | D90: 5 | E90: 1.6 | F90: 12.89068493 | G90: Short Routes
B91: 2006-01-16 | C91: 4:43PM | D91: 32 | E91: 136.2 | F91: 482.7241613 | G91: Medium Routes
B92: 2006-01-16 | C92: 12:40PM | D92: 9 | E92: 44.5 | F92: 68.2444366 | G92: Short Routes
B93: 2006-01-16 | C93: 4:56PM | D93: 9 | E93: 25.3 | F93: 112.3348909 | G93: Medium Routes
B94: 2006-01-18 | C94: 5:27AM | D94: 17 | E94: 118.5 | F94: 231.4835312 | G94: Medium Routes
B95: 2006-01-18 | C95: 6:10PM | D95: 8 | E95: 36 | F95: 89.05512442 | G95: Medium Routes
B96: 2006-01-18 | C96: 7:40AM | D96: 6 | E96: 21.6 | F96: 60.32140541 | G96: Medium Routes
B97: 2006-01-20 | C97: 3:25PM | D97: 18 | E97: 32.3 | F97: 271.5323407 | G97: Medium Routes
B98: 2006-01-20 | C98: 7:51AM | D98: 54 | E98: 226.4 | F98: 933.7800717 | G98: Medium Routes
B99: 2006-01-20 | C99: 5:21PM | D99: 27 | E99: 161.6 | F99: 456.0085306 | G99: Medium Routes
B100: 2006-01-22 | C100: 3:10PM | D100: 28 | E100: 87.9 | F100: 260.3462636 | G100: Short Routes
B101: 2006-01-22 | C101: 11:12AM | D101: 7 | E101: 46.4 | F101: 109.9296989 | G101: Medium Routes
B102: 2006-01-22 | C102: 2:10PM | D102: 14 | E102: 47.9 | F102: 164.3892936 | G102: Medium Routes
B103: 2006-01-24 | C103: 1:30PM | D103: 19 | E103: 82.9 | F103: 276.2452149 | G103: Medium Routes
B104: 2006-01-24 | C104: 4:10PM | D104: 10 | E104: 63.6 | F104: 111.3189055 | G104: Medium Routes
B105: 2006-01-24 | C105: 5:40AM | D105: 3 | E105: 21.6 | F105: 30.1607027 | G105: Medium Routes
B106: 2006-01-26 | C106: 5:40AM | D106: 8 | E106: 46.7 | F106: 150.9059191 | G106: Medium Routes
B107: 2006-01-26 | C107: 10:10AM | D107: 47 | E107: 150.9 | F107: 631.2594567 | G107: Medium Routes
B108: 2006-01-28 | C108: 3:23PM | D108: 54 | E108: 227.9 | F108: 933.7800717 | G108: Medium Routes
B109: 2006-01-28 | C109: 12:11PM | D109: 21 | E109: 168.5 | F109: 396.1280375 | G109: Medium Routes
B110: 2006-01-28 | C110: 9:28AM | D110: 19 | E110: 106.6 | F110: 211.4080831 | G110: Medium Routes
B111: 2006-01-30 | C111: 6:20PM | D111: 48 | E111: 243.2 | F111: 1040.907839 | G111: Long Routes
B112: 2006-01-30 | C112: 5:40AM | D112: 6 | E112: 13.8 | F112: 38.99336613 | G112: Short Routes
B113: 2006-01-30 | C113: 11:37AM | D113: 53 | E113: 225.5 | F113: 800.4737471 | G113: Medium Routes
B114: 2006-02-01 | C114: 5:40AM | D114: 2 | E114: 9.4 | F114: 19.40172973 | G114: Short Routes
B115: 2006-02-01 | C115: 12:30PM | D115: 29 | E115: 83.2 | F115: 269.6443444 | G115: Short Routes
B116: 2006-02-01 | C116: 4:40PM | D116: 27 | E116: 179.2 | F116: 407.7885127 | G116: Medium Routes
B117: 2006-02-03 | C117: 4:47AM | D117: 10 | E117: 51.5 | F117: 119.2799143 | G117: Medium Routes
B118: 2006-02-03 | C118: 2:29PM | D118: 8 | E118: 18.3 | F118: 80.02548968 | G118: Medium Routes
B119: 2006-02-03 | C119: 6:19PM | D119: 24 | E119: 127 | F119: 405.3409161 | G119: Medium Routes
B120: 2006-02-05 | C120: 2:32PM | D120: 13 | E120: 38.5 | F120: 120.8750509 | G120: Short Routes
B121: 2006-02-05 | C121: 7:08AM | D121: 17 | E121: 128.8 | F121: 320.675078 | G121: Medium Routes
B122: 2006-02-05 | C122: 3:30PM | D122: 2 | E122: 0.2 | F122: 5.156273973 | G122: Short Routes
B123: 2006-02-07 | C123: 1:21PM | D123: 24 | E123: 78.2 | F123: 286.2717943 | G123: Medium Routes
B124: 2006-02-07 | C124: 5:59PM | D124: 3 | E124: 13.7 | F124: 30.00955863 | G124: Medium Routes
B125: 2006-02-07 | C125: 4:40PM | D125: 24 | E125: 86.6 | F125: 483.7494151 | G125: Long Routes
B126: 2006-02-09 | C126: 6:20AM | D126: 48 | E126: 193.2 | F126: 1040.907839 | G126: Long Routes
B127: 2006-02-09 | C127: 5:55PM | D127: 18 | E127: 119.1 | F127: 200.2813419 | G127: Medium Routes
B128: 2006-02-09 | C128: 12:37PM | D128: 8 | E128: 30.7 | F128: 80.42854054 | G128: Medium Routes
B129: 2006-02-11 | C129: 10:10AM | D129: 11 | E129: 76.4 | F129: 173.1206892 | G129: Medium Routes
B130: 2006-02-11 | C130: 7:30AM | D130: 5 | E130: 47.3 | F130: 72.69610917 | G130: Medium Routes
B131: 2006-02-11 | C131: 7:19AM | D131: 10 | E131: 30.5 | F131: 123.409762 | G131: Medium Routes
B132: 2006-02-13 | C132: 1:40PM | D132: 10 | E132: 37.8 | F132: 100.0318621 | G132: Medium Routes
B133: 2006-02-13 | C133: 7:34AM | D133: 17 | E133: 50.2 | F133: 158.0673743 | G133: Short Routes
B134: 2006-02-13 | C134: 9:58AM | D134: 2 | E134: 1.6 | F134: 18.59616168 | G134: Short Routes
B135: 2006-02-15 | C135: 10:40AM | D135: 17 | E135: 70.6 | F135: 191.8715152 | G135: Medium Routes
B136: 2006-02-15 | C136: 6:50PM | D136: 33 | E136: 154 | F136: 715.6241393 | G136: Long Routes
B137: 2006-02-15 | C137: 6:55AM | D137: 5 | E137: 25.4 | F137: 55.65945276 | G137: Medium Routes
B138: 2006-02-17 | C138: 10:10AM | D138: 29 | E138: 80.4 | F138: 456.4090897 | G138: Medium Routes
B139: 2006-02-17 | C139: 2:57PM | D139: 85 | E139: 308.8 | F139: 1843.274298 | G139: Long Routes
B140: 2006-02-17 | C140: 11:40AM | D140: 17 | E140: 59.1 | F140: 342.6558357 | G140: Long Routes
B141: 2006-02-19 | C141: 2:28PM | D141: 23 | E141: 88.8 | F141: 498.7683395 | G141: Long Routes
B142: 2006-02-19 | C142: 7:18PM | D142: 51 | E142: 224.2 | F142: 331.4436121 | G142: Short Routes
B143: 2006-02-19 | C143: 7:56AM | D143: 28 | E143: 135.4 | F143: 422.8917909 | G143: Medium Routes
B144: 2006-02-21 | C144: 5:45AM | D144: 16 | E144: 88 | F144: 251.8119116 | G144: Medium Routes
B145: 2006-02-21 | C145: 7:40AM | D145: 8 | E145: 47.3 | F145: 60.66172142 | G145: Short Routes
B146: 2006-02-21 | C146: 6:27AM | D146: 16 | E146: 128.4 | F146: 270.2272774 | G146: Medium Routes
B147: 2006-02-23 | C147: 5:01PM | D147: 4 | E147: 18.6 | F147: 49.14697436 | G147: Medium Routes
B148: 2006-02-23 | C148: 9:40AM | D148: 18 | E148: 80.6 | F148: 211.3576633 | G148: Medium Routes
B149: 2006-02-23 | C149: 7:50PM | D149: 0 | E149: 0 | F149: 0 | G149: Short Routes
B150: 2006-02-25 | C150: 10:01PM | D150: 6 | E150: 26.2 | F150: 67.71935832 | G150: Medium Routes
B151: 2006-02-25 | C151: 7:10AM | D151: 32 | E151: 147.4 | F151: 553.3511536 | G151: Medium Routes
B152: 2006-02-25 | C152: 6:59PM | D152: 5 | E152: 19.5 | F152: 78.52121352 | G152: Medium Routes
B153: 2006-02-27 | C153: 4:10PM | D153: 40 | E153: 232.8 | F153: 544.6671323 | G153: Medium Routes
B154: 2006-02-27 | C154: 3:11PM | D154: 35 | E154: 271.4 | F154: 660.2133959 | G154: Medium Routes
B155: 2006-02-27 | C155: 9:37AM | D155: 1 | E155: 6 | F155: 10.05356757 | G155: Medium Routes
B156: 2006-03-01 | C156: 10:26AM | D156: 13 | E156: 45.5 | F156: 98.57529731 | G156: Short Routes
B157: 2006-03-01 | C157: 7:26AM | D157: 7 | E157: 26.3 | F157: 86.00720513 | G157: Medium Routes
B158: 2006-03-01 | C158: 3:10PM | D158: 29 | E158: 85.3 | F158: 437.9950692 | G158: Medium Routes
B159: 2006-03-03 | C159: 7:10PM | D159: 24 | E159: 147.3 | F159: 377.7178674 | G159: Medium Routes
B160: 2006-03-03 | C160: 8:46AM | D160: 11 | E160: 85.9 | F160: 149.7834614 | G160: Medium Routes
B161: 2006-03-03 | C161: 5:49PM | D161: 8 | E161: 34.5 | F161: 99.85323636 | G161: Medium Routes
B162: 2006-03-05 | C162: 4:10PM | D162: 9 | E162: 33.7 | F162: 101.5790375 | G162: Medium Routes
B163: 2006-03-05 | C163: 1:49PM | D163: 14 | E163: 61.8 | F163: 211.1918205 | G163: Medium Routes
B164: 2006-03-05 | C164: 9:23AM | D164: 34 | E164: 132.9 | F164: 587.9356007 | G164: Medium Routes
B165: 2006-03-07 | C165: 4:21PM | D165: 18 | E165: 97.8 | F165: 203.1580749 | G165: Medium Routes
B166: 2006-03-07 | C166: 5:39AM | D166: 9 | E166: 48.4 | F166: 87.30778378 | G166: Short Routes
B167: 2006-03-07 | C167: 5:40AM | D167: 6 | E167: 36.5 | F167: 74.88992727 | G167: Medium Routes
B168: 2006-03-09 | C168: 10:57PM | D168: 28 | E168: 116.8 | F168: 484.1822594 | G168: Medium Routes
B169: 2006-03-09 | C169: 9:19AM | D169: 39 | E169: 126.2 | F169: 845.7376192 | G169: Long Routes
B170: 2006-03-09 | C170: 6:40AM | D170: 19 | E170: 70 | F170: 286.9622867 | G170: Medium Routes
B171: 2006-03-11 | C171: 2:10PM | D171: 12 | E171: 74.4 | F171: 135.4387166 | G171: Medium Routes
B172: 2006-03-11 | C172: 2:19PM | D172: 20 | E172: 168 | F172: 246.8195241 | G172: Medium Routes
B173: 2006-03-11 | C173: 11:52AM | D173: 12 | E173: 94.1 | F173: 173.9009521 | G173: Medium Routes
B174: 2006-03-13 | C174: 10:10AM | D174: 15 | E174: 76.2 | F174: 166.9011183 | G174: Medium Routes
B175: 2006-03-13 | C175: 2:40PM | D175: 12 | E175: 53 | F175: 120.6428108 | G175: Medium Routes
B176: 2006-03-13 | C176: 5:10PM | D176: 0 | E176: 0 | F176: 0 | G176: Short Routes
B177: 2006-03-15 | C177: 12:57PM | D177: 61 | E177: 195.7 | F177: 1054.825637 | G177: Medium Routes
B178: 2006-03-15 | C178: 7:19AM | D178: 50 | E178: 193.1 | F178: 1084.278999 | G178: Long Routes
B179: 2006-03-15 | C179: 8:11AM | D179: 42 | E179: 203 | F179: 709.3466031 | G179: Medium Routes
B180: 2006-03-17 | C180: 1:44PM | D180: 84 | E180: 374.1 | F180: 1452.546778 | G180: Medium Routes
B181: 2006-03-17 | C181: 10:11AM | D181: 46 | E181: 312.1 | F181: 867.7090346 | G181: Medium Routes
B182: 2006-03-17 | C182: 6:55AM | D182: 5 | E182: 24.2 | F182: 55.65945276 | G182: Medium Routes
B183: 2006-03-19 | C183: 7:18PM | D183: 4 | E183: 13.1 | F183: 25.99557742 | G183: Short Routes
B184: 2006-03-19 | C184: 1:20PM | D184: 16 | E184: 123 | F184: 241.6524519 | G184: Medium Routes
B185: 2006-03-19 | C185: 11:50AM | D185: 19 | E185: 97.1 | F185: 286.9622867 | G185: Medium Routes
B186: 2006-03-21 | C186: 4:38PM | D186: 64 | E186: 289.1 | F186: 1387.877119 | G186: Long Routes
B187: 2006-03-21 | C187: 4:56PM | D187: 9 | E187: 48.2 | F187: 122.5501048 | G187: Medium Routes
B188: 2006-03-21 | C188: 6:25AM | D188: 5 | E188: 10 | F188: 46.49040421 | G188: Short Routes
B189: 2006-03-23 | C189: 2:38PM | D189: 65 | E189: 197.1 | F189: 1409.562699 | G189: Long Routes
B190: 2006-03-23 | C190: 2:41PM | D190: 27 | E190: 83.8 | F190: 392.5589895 | G190: Medium Routes
B191: 2006-03-23 | C191: 7:21PM | D191: 11 | E191: 59 | F191: 172.7466697 | G191: Medium Routes
B192: 2006-03-25 | C192: 8:37AM | D192: 25 | E192: 116.2 | F192: 542.1394995 | G192: Long Routes
B193: 2006-03-25 | C193: 8:10PM | D193: 9 | E193: 35.4 | F193: 141.3381843 | G193: Medium Routes
B194: 2006-03-25 | C194: 2:51PM | D194: 26 | E194: 113.2 | F194: 439.1193258 | G194: Medium Routes
B195: 2006-03-27 | C195: 5:49PM | D195: 34 | E195: 143.8 | F195: 737.3097193 | G195: Long Routes
B196: 2006-03-27 | C196: 10:03AM | D196: 7 | E196: 14.4 | F196: 86.00720513 | G196: Medium Routes
B197: 2006-03-27 | C197: 5:40PM | D197: 37 | E197: 259.6 | F197: 558.8212951 | G197: Medium Routes
B198: 2006-03-29 | C198: 2:47PM | D198: 26 | E198: 102.7 | F198: 310.1277772 | G198: Medium Routes
B199: 2006-03-29 | C199: 4:17PM | D199: 11 | E199: 28.5 | F199: 71.4878379 | G199: Short Routes
B200: 2006-03-29 | C200: 5:41AM | D200: 38 | E200: 354 | F200: 641.7897838 | G200: Medium Routes
B201: 2006-03-31 | C201: 4:30PM | D201: 10 | E201: 36.1 | F201: 216.8557998 | G201: Long Routes
B202: 2006-03-31 | C202: 6:10AM | D202: 10 | E202: 32 | F202: 64.98894355 | G202: Short Routes
B203: 2006-03-31 | C203: 2:10PM | D203: 21 | E203: 74.7 | F203: 258.0216154 | G203: Medium Routes
B204: 2006-04-02 | C204: 8:10PM | D204: 10 | E204: 59.9 | F204: 112.8655972 | G204: Medium Routes
B205: 2006-04-02 | C205: 5:00PM | D205: 3 | E205: 18.7 | F205: 60.46867689 | G205: Long Routes
B206: 2006-04-02 | C206: 10:56AM | D206: 34 | E206: 221 | F206: 513.5114604 | G206: Medium Routes
B207: 2006-04-04 | C207: 7:17PM | D207: 45 | E207: 238.6 | F207: 778.1500598 | G207: Medium Routes
B208: 2006-04-04 | C208: 5:40PM | D208: 18 | E208: 69.1 | F208: 167.3654551 | G208: Short Routes
B209: 2006-04-04 | C209: 5:00PM | D209: 26 | E209: 117.6 | F209: 378.0197677 | G209: Medium Routes
B210: 2006-04-06 | C210: 6:46AM | D210: 13 | E210: 46.6 | F210: 120.8750509 | G210: Short Routes
B211: 2006-04-06 | C211: 11:00AM | D211: 4 | E211: 26.5 | F211: 49.92661818 | G211: Medium Routes
B212: 2006-04-06 | C212: 4:10PM | D212: 42 | E212: 312.7 | F212: 634.3376864 | G212: Medium Routes
B213: 2006-04-08 | C213: 5:14PM | D213: 65 | E213: 242.5 | F213: 1123.994531 | G213: Medium Routes
B214: 2006-04-08 | C214: 9:06AM | D214: 29 | E214: 106.7 | F214: 628.8818194 | G214: Long Routes
B215: 2006-04-08 | C215: 11:40AM | D215: 23 | E215: 95.9 | F215: 213.8558593 | G215: Short Routes
B216: 2006-04-10 | C216: 7:17PM | D216: 29 | E216: 141.9 | F216: 501.474483 | G216: Medium Routes
B217: 2006-04-10 | C217: 7:40AM | D217: 17 | E217: 63.8 | F217: 256.7557302 | G217: Medium Routes
B218: 2006-04-10 | C218: 5:30PM | D218: 1 | E218: 1 | F218: 2.578136986 | G218: Short Routes
B219: 2006-04-12 | C219: 7:24PM | D219: 4 | E219: 22.4 | F219: 45.14623888 | G219: Medium Routes
B220: 2006-04-12 | C220: 4:10PM | D220: 3 | E220: 7.8 | F220: 19.49668306 | G220: Short Routes
B221: 2006-04-12 | C221: 7:28AM | D221: 8 | E221: 26.9 | F221: 98.29394872 | G221: Medium Routes
B222: 2006-04-14 | C222: 4:19PM | D222: 21 | E222: 102.2 | F222: 330.5031339 | G222: Medium Routes
B223: 2006-04-14 | C223: 10:44AM | D223: 44 | E223: 173 | F223: 760.8578362 | G223: Medium Routes
B224: 2006-04-14 | C224: 4:20PM | D224: 2 | E224: 0.6 | F224: 5.156273973 | G224: Short Routes
B225: 2006-04-16 | C225: 3:55PM | D225: 18 | E225: 64.8 | F225: 390.3404396 | G225: Long Routes
B226: 2006-04-16 | C226: 8:12AM | D226: 7 | E226: 31.6 | F226: 53.07900624 | G226: Short Routes
... 393 more rows

Sheet SAMPLING PLANS
A1: 1.25 | B1: Sampling Plans
B2: Once you've completed the INPUT tab, your options for a Sampling Plan will appear here. You can choose to select samples annually, quarterly, monthly, or weekly (sections 1, 2, 3, 4). Within these sections, look at row a) if 100% count of UPT is not available, and row b) if 100% count of UPT is available. Look at row c) if you use the uncommon PPMT Option. If you do not use route grouping, your required sample in each period will be in column D, Sample Size by Period. If you use route grouping, your required sample in each period will be in columns F-O, Sample Size by Period and by Group (depending on how many groups you use).
B3: A. Sample Size by Options
D5: Without Grouping | F5: With Grouping
D6: Sample Size by Period | E6: Annual Sample Size | F6: Sample Size by Period and by Group | P6: Annual Sample Size
F7: =+IF(CALCULATIONS!E8=" "," ",INPUT!D33) -> Short Routes | G7: =+IF(CALCULATIONS!F8=" "," ",INPUT!E33) -> Medium Routes | H7: =+IF(CALCULATIONS!G8=" "," ",INPUT!F33) -> Long Routes | I7: =+IF(CALCULATIONS!H8=" "," ",INPUT!G33) ->  | J7: =+IF(CALCULATIONS!I8=" "," ",INPUT!H33) ->  | K7: =+IF(CALCULATIONS!J8=" "," ",INPUT!I33) ->  | L7: =+IF(CALCULATIONS!K8=" "," ",INPUT!J33) ->  | M7: =+IF(CALCULATIONS!L8=" "," ",INPUT!K33) ->  | N7: =+IF(CALCULATIONS!M8=" "," ",INPUT!L33) ->  | O7: =+IF(CALCULATIONS!N8=" "," ",INPUT!M33) ->  | Q7: All
B9: 1. Annual Frequency | C9: 1
B10: a) 100% UPT Not Available | D10: =+IF(CALCULATIONS!D19=" "," ",ROUNDUP(A1*(CALCULATIONS!D19*1.96/0.1)^2,0)) -> 348 | E10: =+IF(D10=" "," ",D10) -> 348 | F10: =+IF(OR(SUM(PMT)=0,SUM(SizeActual)=0,SUM(SizeExpected)=0,CALCULATIONS!E$8=" ")," ",MAX(10,ROUNDUP(INPUT!D$39/INPUT!$N$39*$Q10,0))) -> 68 | G10: =+IF(OR(SUM(PMT)=0,SUM(SizeActual)=0,SUM(SizeExpected)=0,CALCULATIONS!F$8=" ")," ",MAX(10,ROUNDUP(INPUT!E$39/INPUT!$N$39*$Q10,0))) -> 205 | H10: =+IF(OR(SUM(PMT)=0,SUM(SizeActual)=0,SUM(SizeExpected)=0,CALCULATIONS!G$8=" ")," ",MAX(10,ROUNDUP(INPUT!F$39/INPUT!$N$39*$Q10,0))) -> 22 | I10: =+IF(OR(SUM(PMT)=0,SUM(SizeActual)=0,SUM(SizeExpected)=0,CALCULATIONS!H$8=" ")," ",MAX(10,ROUNDUP(INPUT!G$39/INPUT!$N$39*$Q10,0))) ->  | J10: =+IF(OR(SUM(PMT)=0,SUM(SizeActual)=0,SUM(SizeExpected)=0,CALCULATIONS!I$8=" ")," ",MAX(10,ROUNDUP(INPUT!H$39/INPUT!$N$39*$Q10,0))) ->  | K10: =+IF(OR(SUM(PMT)=0,SUM(SizeActual)=0,SUM(SizeExpected)=0,CALCULATIONS!J$8=" ")," ",MAX(10,ROUNDUP(INPUT!I$39/INPUT!$N$39*$Q10,0))) ->  | L10: =+IF(OR(SUM(PMT)=0,SUM(SizeActual)=0,SUM(SizeExpected)=0,CALCULATIONS!K$8=" ")," ",MAX(10,ROUNDUP(INPUT!J$39/INPUT!$N$39*$Q10,0))) ->  | M10: =+IF(OR(SUM(PMT)=0,SUM(SizeActual)=0,SUM(SizeExpected)=0,CALCULATIONS!L$8=" ")," ",MAX(10,ROUNDUP(INPUT!K$39/INPUT!$N$39*$Q10,0))) ->  | N10: =+IF(OR(SUM(PMT)=0,SUM(SizeActual)=0,SUM(SizeExpected)=0,CALCULATIONS!M$8=" ")," ",MAX(10,ROUNDUP(INPUT!L$39/INPUT!$N$39*$Q10,0))) ->  | O10: =+IF(OR(SUM(PMT)=0,SUM(SizeActual)=0,SUM(SizeExpected)=0,CALCULATIONS!N$8=" ")," ",MAX(10,ROUNDUP(INPUT!M$39/INPUT!$N$39*$Q10,0))) ->  | P10: =+IF(SUM(F10:O10)=0," ",SUM(F10:O10)) -> 295 | Q10: =+IF(CALCULATIONS!O19=" "," ",ROUNDUP(A1*(CALCULATIONS!O19*1.96/0.1)^2,0)) -> 294
B11: b) 100% UPT Available | D11: =+IF(CALCULATIONS!D21=" "," ",ROUNDUP(A1*(CALCULATIONS!D21*1.96/0.1)^2,0)) -> 70 | E11: =+IF(D11=" "," ",D11) -> 70 | F11: =+IF(OR(SUM(UPT)=0,SUM(PMT)=0,SUM(SizeActual)=0,SUM(SizeExpected)=0,CALCULATIONS!E$8=" ")," ",IF(INPUT!$M52=0,ROUNDUP(INPUT!D$39/INPUT!$N$39*$Q11,0),MAX(10,ROUNDUP(INPUT!D$39/INPUT!$N$39*$Q11,0)))) -> 15 | G11: =+IF(OR(SUM(UPT)=0,SUM(PMT)=0,SUM(SizeActual)=0,SUM(SizeExpected)=0,CALCULATIONS!F$8=" ")," ",IF(INPUT!$M52=0,ROUNDUP(INPUT!E$39/INPUT!$N$39*$Q11,0),MAX(10,ROUNDUP(INPUT!E$39/INPUT!$N$39*$Q11,0)))) -> 46 | H11: =+IF(OR(SUM(UPT)=0,SUM(PMT)=0,SUM(SizeActual)=0,SUM(SizeExpected)=0,CALCULATIONS!G$8=" ")," ",IF(INPUT!$M52=0,ROUNDUP(INPUT!F$39/INPUT!$N$39*$Q11,0),MAX(10,ROUNDUP(INPUT!F$39/INPUT!$N$39*$Q11,0)))) -> 10 | I11: =+IF(OR(SUM(UPT)=0,SUM(PMT)=0,SUM(SizeActual)=0,SUM(SizeExpected)=0,CALCULATIONS!H$8=" ")," ",IF(INPUT!$M52=0,ROUNDUP(INPUT!G$39/INPUT!$N$39*$Q11,0),MAX(10,ROUNDUP(INPUT!G$39/INPUT!$N$39*$Q11,0)))) ->  | J11: =+IF(OR(SUM(UPT)=0,SUM(PMT)=0,SUM(SizeActual)=0,SUM(SizeExpected)=0,CALCULATIONS!I$8=" ")," ",IF(INPUT!$M52=0,ROUNDUP(INPUT!H$39/INPUT!$N$39*$Q11,0),MAX(10,ROUNDUP(INPUT!H$39/INPUT!$N$39*$Q11,0)))) ->  | K11: =+IF(OR(SUM(UPT)=0,SUM(PMT)=0,SUM(SizeActual)=0,SUM(SizeExpected)=0,CALCULATIONS!J$8=" ")," ",IF(INPUT!$M52=0,ROUNDUP(INPUT!I$39/INPUT!$N$39*$Q11,0),MAX(10,ROUNDUP(INPUT!I$39/INPUT!$N$39*$Q11,0)))) ->  | L11: =+IF(OR(SUM(UPT)=0,SUM(PMT)=0,SUM(SizeActual)=0,SUM(SizeExpected)=0,CALCULATIONS!K$8=" ")," ",IF(INPUT!$M52=0,ROUNDUP(INPUT!J$39/INPUT!$N$39*$Q11,0),MAX(10,ROUNDUP(INPUT!J$39/INPUT!$N$39*$Q11,0)))) ->  | M11: =+IF(OR(SUM(UPT)=0,SUM(PMT)=0,SUM(SizeActual)=0,SUM(SizeExpected)=0,CALCULATIONS!L$8=" ")," ",IF(INPUT!$M52=0,ROUNDUP(INPUT!K$39/INPUT!$N$39*$Q11,0),MAX(10,ROUNDUP(INPUT!K$39/INPUT!$N$39*$Q11,0)))) ->  | N11: =+IF(OR(SUM(UPT)=0,SUM(PMT)=0,SUM(SizeActual)=0,SUM(SizeExpected)=0,CALCULATIONS!M$8=" ")," ",IF(INPUT!$M52=0,ROUNDUP(INPUT!L$39/INPUT!$N$39*$Q11,0),MAX(10,ROUNDUP(INPUT!L$39/INPUT!$N$39*$Q11,0)))) ->  | O11: =+IF(OR(SUM(UPT)=0,SUM(PMT)=0,SUM(SizeActual)=0,SUM(SizeExpected)=0,CALCULATIONS!N$8=" ")," ",IF(INPUT!$M52=0,ROUNDUP(INPUT!M$39/INPUT!$N$39*$Q11,0),MAX(10,ROUNDUP(INPUT!M$39/INPUT!$N$39*$Q11,0)))) ->  | P11: =+IF(SUM(F11:O11)=0," ",SUM(F11:O11)) -> 71 | Q11: =+IF(AND(CALCULATIONS!O21=" ",CALCULATIONS!O22=" ")," ",IF(INPUT!M52=1,ROUNDUP(A1*(CALCULATIONS!O21*1.96/0.1)^2,0),ROUNDUP(A1*(CALCULATIONS!O22*1.96/0.1)^2,0))) -> 65
B12: c) PPMT Option | D12: =+IF(CALCULATIONS!D23=" "," ",ROUNDUP(A1*(CALCULATIONS!D23*1.96/0.1)^2,0)) -> 117 | E12: =+IF(D12=" "," ",D12) -> 117 | F12: =+IF(OR(SUM(PMT)=0,SUM(PPMT)=0,SUM(SizeActual)=0,SUM(SizeExpected)=0,CALCULATIONS!E$8=" ")," ",MAX(10,ROUNDUP(INPUT!D$39/INPUT!$N$39*$Q12,0))) -> 17 | G12: =+IF(OR(SUM(PMT)=0,SUM(PPMT)=0,SUM(SizeActual)=0,SUM(SizeExpected)=0,CALCULATIONS!F$8=" ")," ",MAX(10,ROUNDUP(INPUT!E$39/INPUT!$N$39*$Q12,0))) -> 51 | H12: =+IF(OR(SUM(PMT)=0,SUM(PPMT)=0,SUM(SizeActual)=0,SUM(SizeExpected)=0,CALCULATIONS!G$8=" ")," ",MAX(10,ROUNDUP(INPUT!F$39/INPUT!$N$39*$Q12,0))) -> 10 | I12: =+IF(OR(SUM(PMT)=0,SUM(PPMT)=0,SUM(SizeActual)=0,SUM(SizeExpected)=0,CALCULATIONS!H$8=" ")," ",MAX(10,ROUNDUP(INPUT!G$39/INPUT!$N$39*$Q12,0))) ->  | J12: =+IF(OR(SUM(PMT)=0,SUM(PPMT)=0,SUM(SizeActual)=0,SUM(SizeExpected)=0,CALCULATIONS!I$8=" ")," ",MAX(10,ROUNDUP(INPUT!H$39/INPUT!$N$39*$Q12,0))) ->  | K12: =+IF(OR(SUM(PMT)=0,SUM(PPMT)=0,SUM(SizeActual)=0,SUM(SizeExpected)=0,CALCULATIONS!J$8=" ")," ",MAX(10,ROUNDUP(INPUT!I$39/INPUT!$N$39*$Q12,0))) ->  | L12: =+IF(OR(SUM(PMT)=0,SUM(PPMT)=0,SUM(SizeActual)=0,SUM(SizeExpected)=0,CALCULATIONS!K$8=" ")," ",MAX(10,ROUNDUP(INPUT!J$39/INPUT!$N$39*$Q12,0))) ->  | M12: =+IF(OR(SUM(PMT)=0,SUM(PPMT)=0,SUM(SizeActual)=0,SUM(SizeExpected)=0,CALCULATIONS!L$8=" ")," ",MAX(10,ROUNDUP(INPUT!K$39/INPUT!$N$39*$Q12,0))) ->  | N12: =+IF(OR(SUM(PMT)=0,SUM(PPMT)=0,SUM(SizeActual)=0,SUM(SizeExpected)=0,CALCULATIONS!M$8=" ")," ",MAX(10,ROUNDUP(INPUT!L$39/INPUT!$N$39*$Q12,0))) ->  | O12: =+IF(OR(SUM(PMT)=0,SUM(PPMT)=0,SUM(SizeActual)=0,SUM(SizeExpected)=0,CALCULATIONS!N$8=" ")," ",MAX(10,ROUNDUP(INPUT!M$39/INPUT!$N$39*$Q12,0))) ->  | P12: =+IF(SUM(F12:O12)=0," ",SUM(F12:O12)) -> 78 | Q12: =+IF(CALCULATIONS!O23=" "," ",ROUNDUP(A1*(CALCULATIONS!O23*1.96/0.1)^2,0)) -> 72
B14: 2. Quarterly Frequency | C14: 4
B15: a) 100% UPT Not Available | D15: =+IF(D$10=" "," ",ROUNDUP(D$10/$C14,0)) -> 87 | E15: =+IF(D15=" "," ",D15*C14) -> 348 | F15: 17 | G15: 52 | H15: 6 | P15: =+IF(Q15=" "," ",SUM(F15:O15)*C14) -> 300 | Q15: =+IF(SUM(F15:O15)=0," ",SUM(F15:O15)) -> 75
B16: b) 100% UPT Available | D16: =+IF(D$11=" "," ",ROUNDUP(D$11/$C14,0)) -> 18 | E16: =+IF(D16=" "," ",D16*C14) -> 72 | F16: =+IF(F$11=" "," ",ROUNDUP(F$11/$C14,0)) -> 4 | G16: 12 | H16: 3 | P16: =+IF(Q16=" "," ",SUM(F16:O16)*C14) -> 76 | Q16: =+IF(SUM(F16:O16)=0," ",SUM(F16:O16)) -> 19
B17: c) PPMT Option | D17: =+IF(D$12=" "," ",ROUNDUP(D$12/$C14,0)) -> 30 | E17: =+IF(D17=" "," ",D17*C14) -> 120 | F17: =+IF(F$12=" "," ",ROUNDUP(F$12/$C14,0)) -> 5 | G17: 13 | H17: 3 | P17: =+IF(Q17=" "," ",SUM(F17:O17)*C14) -> 84 | Q17: =+IF(SUM(F17:O17)=0," ",SUM(F17:O17)) -> 21
B19: 3. Monthly Frquency | C19: 12
B20: a) 100% UPT Not Available | D20: =+IF(D$10=" "," ",ROUNDUP(D$10/$C19,0)) -> 29 | E20: =+IF(D20=" "," ",D20*C19) -> 348 | F20: 6 | G20: 18 | H20: 2 | P20: =+IF(Q20=" "," ",SUM(F20:O20)*C19) -> 312 | Q20: =+IF(SUM(F20:O20)=0," ",SUM(F20:O20)) -> 26
B21: b) 100% UPT Available | D21: =+IF(D$11=" "," ",ROUNDUP(D$11/$C19,0)) -> 6 | E21: =+IF(D21=" "," ",D21*C19) -> 72 | F21: =+IF(F$11=" "," ",ROUNDUP(F$11/$C19,0)) -> 2 | G21: 4 | H21: 1 | P21: =+IF(Q21=" "," ",SUM(F21:O21)*C19) -> 84 | Q21: =+IF(SUM(F21:O21)=0," ",SUM(F21:O21)) -> 7
B22: c) PPMT Option | D22: =+IF(D$12=" "," ",ROUNDUP(D$12/$C19,0)) -> 10 | E22: =+IF(D22=" "," ",D22*C19) -> 120 | F22: =+IF(F$12=" "," ",ROUNDUP(F$12/$C19,0)) -> 2 | G22: 5 | H22: 1 | P22: =+IF(Q22=" "," ",SUM(F22:O22)*C19) -> 96 | Q22: =+IF(SUM(F22:O22)=0," ",SUM(F22:O22)) -> 8
B24: 4. Weekly Frequency | C24: 52
B25: a) 100% UPT Not Available | D25: =+IF(D$10=" "," ",ROUNDUP(D$10/$C24,0)) -> 7 | E25: =+IF(D25=" "," ",D25*C24) -> 364 | F25: 2 | G25: 4 | H25: 1 | P25: =+IF(Q25=" "," ",SUM(F25:O25)*C24) -> 364 | Q25: =+IF(SUM(F25:O25)=0," ",SUM(F25:O25)) -> 7
B26: b) 100% UPT Available | D26: =+IF(D$11=" "," ",ROUNDUP(D$11/$C24,0)) -> 2 | E26: =+IF(D26=" "," ",D26*C24) -> 104 | F26: =+IF(F$11=" "," ",ROUNDUP(F$11/$C24,0)) -> 1 | G26: 1 | H26: 1 | P26: =+IF(Q26=" "," ",SUM(F26:O26)*C24) -> 156 | Q26: =+IF(SUM(F26:O26)=0," ",SUM(F26:O26)) -> 3
B27: c) PPMT Option | D27: =+IF(D$12=" "," ",ROUNDUP(D$12/$C24,0)) -> 3 | E27: =+IF(D27=" "," ",D27*C24) -> 156 | F27: =+IF(F$12=" "," ",ROUNDUP(F$12/$C24,0)) -> 1 | G27: 1 | H27: 1 | P27: =+IF(Q27=" "," ",Q27*C24) -> 156 | Q27: =+IF(SUM(F27:O27)=0," ",SUM(F27:O27)) -> 3
B30: B. Description of Options
B32: 1. Sampling Frequency
B34: a) Annual = sample size during an entire year that is determined from analyzing the sample data you have entered. A margin of safety has been built into this sample size to guard against fluctuations of service and usage patterns in your system. It is logistically difficult to select a random sample for an entire year at the same time, since you may not know at the start of the year what vehicle trips you will operate for the entire year. Most agencies choose to select a sample quarterly, monthly, or weekly.
B36: b) Quarterly = sample size during an entire quarter if you choose to select a sample once every three months.
B38: c) Monthly = sample size during an entire month if you choose to select a sample once every month.
B40: d) Weekly = sample size during a week if you choose to select a sample once every week.
B42: e) Choose the sampling frequency that works best for you. Shorter selection periods are usually easier to manage because you have a better idea what service you will operate, and the number of trips you must select per period is smaller. But due to rounding when the annual sample is allocated to each of these periods, the annual sample size is higher if you use shorter periods.
B44: 2. Grouping for Improving Sampling Efficiency
B46: Grouping is one method for you to improve your sampling efficiency. For in-depth discussion of grouping, please refer to the NTD Sampling Manual sections on "Route Grouping".
B48: a) Without Grouping= you sample and estimate service consumed without dividing your overall operation into distinct groups.
B50: b) With Grouping = you sample and estimate service consumed data by dividing your overall operation into two or more distinct groups.
B52: c) Cells F7:O7 = group names if you use grouping and empty if you do not.
B54: 3. Other Options for Improving Sampling Efficiency
B56: a) If you will not be reporting a 100% count of UPT for a future NTD reporting year, you must use the Base option.
B58: b) If you will be reporting a 100% count of UPT for a future NTD reporting year, you may use either the APTL option or the PPMT option. You have both options for you to consider if you have entered your sample data on UPT, PMT, and PPMT into INPUT. You only have the APTL option if you have entered your sample data on UPT and PMT but not on PPMT.
B60: c) When you do have both the APTL and PPMT options, you should choose the APTL option if it gives you a smaller annual sample size. Otherwise you need to decide whether the extra effort required in estimating annual data for the NTD is more trouble than the smaller sample size that the PPMT option gives you.

Sheet CALCULATIONS
B1: Calculations
B3: A. Sample Data Analysis
D5: Without | E5: With Grouping | S5: Without | T5: With Grouping
D6: Grouping | E6: =+IF(CALCULATIONS!E8=0," ",INPUT!D33) -> Short Routes | F6: =+IF(CALCULATIONS!F8=0," ",INPUT!E33) -> Medium Routes | G6: =+IF(CALCULATIONS!G8=0," ",INPUT!F33) -> Long Routes | H6: =+IF(CALCULATIONS!H8=0," ",INPUT!G33) ->  | I6: =+IF(CALCULATIONS!I8=0," ",INPUT!H33) ->  | J6: =+IF(CALCULATIONS!J8=0," ",INPUT!I33) ->  | K6: =+IF(CALCULATIONS!K8=0," ",INPUT!J33) ->  | L6: =+IF(CALCULATIONS!L8=0," ",INPUT!K33) ->  | M6: =+IF(CALCULATIONS!M8=0," ",INPUT!L33) ->  | N6: =+IF(CALCULATIONS!N8=0," ",INPUT!M33) ->  | O6: All | S6: Grouping | T6: =+IF(CALCULATIONS!T8=0," ",INPUT!P33) ->  | U6: =+IF(CALCULATIONS!U8=0," ",INPUT!Q33) ->  | V6: =+IF(CALCULATIONS!V8=0," ",INPUT!R33) ->  | W6: =+IF(CALCULATIONS!W8=0," ",INPUT!S33) ->  | X6: =+IF(CALCULATIONS!X8=0," ",INPUT!T33) ->  | Y6: =+IF(CALCULATIONS!Y8=0," ",INPUT!U33) ->  | Z6: =+IF(CALCULATIONS!Z8=0," ",INPUT!V33) ->  | AA6: =+IF(CALCULATIONS!AA8=0," ",INPUT!W33) ->  | AB6: =+IF(CALCULATIONS!AB8=0," ",INPUT!X33) ->  | AC6: =+IF(CALCULATIONS!AC8=0," ",INPUT!Y33) ->  | AD6: All
B8: Group Size in the Sample | D8: =+IF(COUNT(PMT)=0," ",COUNT(PMT)) -> 549 | E8: =+IF(INPUT!D33=""," ",COUNT(IF(Group=INPUT!D$33,PMT))) -> 116 | F8: =+IF(INPUT!E33=""," ",COUNT(IF(Group=INPUT!E$33,PMT))) -> 386 | G8: =+IF(INPUT!F33=""," ",COUNT(IF(Group=INPUT!F$33,PMT))) -> 47 | H8: =+IF(INPUT!G33=""," ",COUNT(IF(Group=INPUT!G$33,PMT))) ->  | I8: =+IF(INPUT!H33=""," ",COUNT(IF(Group=INPUT!H$33,PMT))) ->  | J8: =+IF(INPUT!I33=""," ",COUNT(IF(Group=INPUT!I$33,PMT))) ->  | K8: =+IF(INPUT!J33=""," ",COUNT(IF(Group=INPUT!J$33,PMT))) ->  | L8: =+IF(INPUT!K33=""," ",COUNT(IF(Group=INPUT!K$33,PMT))) ->  | M8: =+IF(INPUT!L33=""," ",COUNT(IF(Group=INPUT!L$33,PMT))) ->  | N8: =+IF(INPUT!M33=""," ",COUNT(IF(Group=INPUT!M$33,PMT))) ->  | O8: =+IF(SUM(E8:N8)=0," ",SUM(E8:N8)) -> 549 | Q8: Group Size in the Sample | S8: =+IF(COUNT(PMT_orig)=0," ",COUNT(PMT_orig)) ->  | T8: =+IF(INPUT!P33=""," ",COUNT(IF(Group_orig=INPUT!P$33,PMT_orig))) ->  | U8: =+IF(INPUT!Q33=""," ",COUNT(IF(Group_orig=INPUT!Q$33,PMT_orig))) ->  | V8: =+IF(INPUT!R33=""," ",COUNT(IF(Group_orig=INPUT!R$33,PMT_orig))) ->  | W8: =+IF(INPUT!S33=""," ",COUNT(IF(Group_orig=INPUT!S$33,PMT_orig))) ->  | X8: =+IF(INPUT!T33=""," ",COUNT(IF(Group_orig=INPUT!T$33,PMT_orig))) ->  | Y8: =+IF(INPUT!U33=""," ",COUNT(IF(Group_orig=INPUT!U$33,PMT_orig))) ->  | Z8: =+IF(INPUT!V33=""," ",COUNT(IF(Group_orig=INPUT!V$33,PMT_orig))) ->  | AA8: =+IF(INPUT!W33=""," ",COUNT(IF(Group_orig=INPUT!W$33,PMT_orig))) ->  | AB8: =+IF(INPUT!X33=""," ",COUNT(IF(Group_orig=INPUT!X$33,PMT_orig))) ->  | AC8: =+IF(INPUT!Y33=""," ",COUNT(IF(Group_orig=INPUT!Y$33,PMT_orig))) ->  | AD8: =+IF(SUM(T8:AC8)=0," ",SUM(T8:AC8)) -> 
B10: Average | Q10: Average
B11: UPT | D11: =+IF(SUM(UPT)=0," ",AVERAGE(UPT)) -> 19.90892532 | E11: =+IF(OR(SUM(UPT)=0,E8=" ")," ",AVERAGE(IF(Group=E6,UPT))) -> 9.974137931 | F11: =+IF(OR(SUM(UPT)=0,F8=" ")," ",AVERAGE(IF(Group=F6,UPT))) -> 21.19430052 | G11: =+IF(OR(SUM(UPT)=0,G8=" ")," ",AVERAGE(IF(Group=G6,UPT))) -> 33.87234043 | H11: =+IF(OR(SUM(UPT)=0,H8=" ")," ",AVERAGE(IF(Group=H6,UPT))) ->  | I11: =+IF(OR(SUM(UPT)=0,I8=" ")," ",AVERAGE(IF(Group=I6,UPT))) ->  | J11: =+IF(OR(SUM(UPT)=0,J8=" ")," ",AVERAGE(IF(Group=J6,UPT))) ->  | K11: =+IF(OR(SUM(UPT)=0,K8=" ")," ",AVERAGE(IF(Group=K6,UPT))) ->  | L11: =+IF(OR(SUM(UPT)=0,L8=" ")," ",AVERAGE(IF(Group=L6,UPT))) ->  | M11: =+IF(OR(SUM(UPT)=0,M8=" ")," ",AVERAGE(IF(Group=M6,UPT))) ->  | N11: =+IF(OR(SUM(UPT)=0,N8=" ")," ",AVERAGE(IF(Group=N6,UPT))) ->  | O11: =+IF(SUM(SizeActual)=0," ",IF(SUM(E11:N11)=0," ",IF(E$8=" ",0,E11*(INPUT!D$34/INPUT!N$34))+IF(F$8=" ",0,F11*(INPUT!E$34/INPUT!N$34))+IF(G$8=" ",0,G11*(INPUT!F$34/INPUT!N$34))+IF(H$8=" ",0,H11*(INPUT!G$34/INPUT!N$34))+IF(I$8=" ",0,I11*(INPUT!H$34/INPUT!N$34))+IF(J$8=" ",0,J11*(INPUT!I$34/INPUT!N$34))+IF(K$8=" ",0,K11*(INPUT!J$34/INPUT!N$34))+IF(L$8=" ",0,L11*(INPUT!K$34/INPUT!N$34))+IF(M$8=" ",0,M11*(INPUT!L$34/INPUT!N$34))+IF(N$8=" ",0,N11*(INPUT!M$34/INPUT!N$34)))) -> 19.54984451 | Q11: UPT | S11: =+IF(SUM(UPT_orig)=0," ",AVERAGE(UPT_orig)) ->  | T11: =+IF(OR(SUM(UPT_orig)=0,T8=" ")," ",AVERAGE(IF(Group_orig=T6,UPT_orig))) ->  | U11: =+IF(OR(SUM(UPT_orig)=0,U8=" ")," ",AVERAGE(IF(Group_orig=U6,UPT_orig))) ->  | V11: =+IF(OR(SUM(UPT_orig)=0,V8=" ")," ",AVERAGE(IF(Group_orig=V6,UPT_orig))) ->  | W11: =+IF(OR(SUM(UPT_orig)=0,W8=" ")," ",AVERAGE(IF(Group_orig=W6,UPT_orig))) ->  | X11: =+IF(OR(SUM(UPT_orig)=0,X8=" ")," ",AVERAGE(IF(Group_orig=X6,UPT_orig))) ->  | Y11: =+IF(OR(SUM(UPT_orig)=0,Y8=" ")," ",AVERAGE(IF(Group_orig=Y6,UPT_orig))) ->  | Z11: =+IF(OR(SUM(UPT_orig)=0,Z8=" ")," ",AVERAGE(IF(Group_orig=Z6,UPT_orig))) ->  | AA11: =+IF(OR(SUM(UPT_orig)=0,AA8=" ")," ",AVERAGE(IF(Group_orig=AA6,UPT_orig))) ->  | AB11: =+IF(OR(SUM(UPT_orig)=0,AB8=" ")," ",AVERAGE(IF(Group_orig=AB6,UPT_orig))) ->  | AC11: =+IF(OR(SUM(UPT_orig)=0,AC8=" ")," ",AVERAGE(IF(Group_orig=AC6,UPT_orig))) ->  | AD11: =+IF(SUM(SizeActual_orig)=0," ",IF(SUM(T11:AC11)=0," ",IF(T$8=" ",0,T11*(INPUT!P$34/INPUT!Z$34))+IF(U$8=" ",0,U11*(INPUT!Q$34/INPUT!Z$34))+IF(V$8=" ",0,V11*(INPUT!R$34/INPUT!Z$34))+IF(W$8=" ",0,W11*(INPUT!S$34/INPUT!Z$34))+IF(X$8=" ",0,X11*(INPUT!T$34/INPUT!Z$34))+IF(Y$8=" ",0,Y11*(INPUT!U$34/INPUT!Z$34))+IF(Z$8=" ",0,Z11*(INPUT!V$34/INPUT!Z$34))+IF(AA$8=" ",0,AA11*(INPUT!W$34/INPUT!Z$34))+IF(AB$8=" ",0,AB11*(INPUT!X$34/INPUT!Z$34))+IF(AC$8=" ",0,AC11*(INPUT!Y$34/INPUT!Z$34)))) -> 
B12: PMT | D12: =+IF(SUM(PMT)=0," ",AVERAGE(PMT)) -> 98.28324226 | E12: =+IF(OR(SUM(PMT)=0,E8=" ")," ",AVERAGE(IF(Group=E6,PMT))) -> 34.3862069 | F12: =+IF(OR(SUM(PMT)=0,F8=" ")," ",AVERAGE(IF(Group=F6,PMT))) -> 111.3103627 | G12: =+IF(OR(SUM(PMT)=0,G8=" ")," ",AVERAGE(IF(Group=G6,PMT))) -> 148.9978723 | H12: =+IF(OR(SUM(PMT)=0,H8=" ")," ",AVERAGE(IF(Group=H6,PMT))) ->  | I12: =+IF(OR(SUM(PMT)=0,I8=" ")," ",AVERAGE(IF(Group=I6,PMT))) ->  | J12: =+IF(OR(SUM(PMT)=0,J8=" ")," ",AVERAGE(IF(Group=J6,PMT))) ->  | K12: =+IF(OR(SUM(PMT)=0,K8=" ")," ",AVERAGE(IF(Group=K6,PMT))) ->  | L12: =+IF(OR(SUM(PMT)=0,L8=" ")," ",AVERAGE(IF(Group=L6,PMT))) ->  | M12: =+IF(OR(SUM(PMT)=0,M8=" ")," ",AVERAGE(IF(Group=M6,PMT))) ->  | N12: =+IF(OR(SUM(PMT)=0,N8=" ")," ",AVERAGE(IF(Group=N6,PMT))) ->  | O12: =+IF(SUM(INPUT!D34:M34)=0," ",IF(SUM(E12:N12)=0," ",IF(E$8=" ",0,E12*(INPUT!D$34/INPUT!N$34))+IF(F$8=" ",0,F12*(INPUT!E$34/INPUT!N$34))+IF(G$8=" ",0,G12*(INPUT!F$34/INPUT!N$34))+IF(H$8=" ",0,H12*(INPUT!G$34/INPUT!N$34))+IF(I$8=" ",0,I12*(INPUT!H$34/INPUT!N$34))+IF(J$8=" ",0,J12*(INPUT!I$34/INPUT!N$34))+IF(K$8=" ",0,K12*(INPUT!J$34/INPUT!N$34))+IF(L$8=" ",0,L12*(INPUT!K$34/INPUT!N$34))+IF(M$8=" ",0,M12*(INPUT!L$34/INPUT!N$34))+IF(N$8=" ",0,N12*(INPUT!M$34/INPUT!N$34)))) -> 96.38289868 | Q12: PMT | S12: =+IF(SUM(PMT_orig)=0," ",AVERAGE(PMT_orig)) ->  | T12: =+IF(OR(SUM(PMT_orig)=0,T8=" ")," ",AVERAGE(IF(Group_orig=T6,PMT_orig))) ->  | U12: =+IF(OR(SUM(PMT_orig)=0,U8=" ")," ",AVERAGE(IF(Group_orig=U6,PMT_orig))) ->  | V12: =+IF(OR(SUM(PMT_orig)=0,V8=" ")," ",AVERAGE(IF(Group_orig=V6,PMT_orig))) ->  | W12: =+IF(OR(SUM(PMT_orig)=0,W8=" ")," ",AVERAGE(IF(Group_orig=W6,PMT_orig))) ->  | X12: =+IF(OR(SUM(PMT_orig)=0,X8=" ")," ",AVERAGE(IF(Group_orig=X6,PMT_orig))) ->  | Y12: =+IF(OR(SUM(PMT_orig)=0,Y8=" ")," ",AVERAGE(IF(Group_orig=Y6,PMT_orig))) ->  | Z12: =+IF(OR(SUM(PMT_orig)=0,Z8=" ")," ",AVERAGE(IF(Group_orig=Z6,PMT_orig))) ->  | AA12: =+IF(OR(SUM(PMT_orig)=0,AA8=" ")," ",AVERAGE(IF(Group_orig=AA6,PMT_orig))) ->  | AB12: =+IF(OR(SUM(PMT_orig)=0,AB8=" ")," ",AVERAGE(IF(Group_orig=AB6,PMT_orig))) ->  | AC12: =+IF(OR(SUM(PMT_orig)=0,AC8=" ")," ",AVERAGE(IF(Group_orig=AC6,PMT_orig))) ->  | AD12: =+IF(SUM(SizeActual_orig)=0," ",IF(SUM(T12:AC12)=0," ",IF(T$8=" ",0,T12*(INPUT!P$34/INPUT!Z$34))+IF(U$8=" ",0,U12*(INPUT!Q$34/INPUT!Z$34))+IF(V$8=" ",0,V12*(INPUT!R$34/INPUT!Z$34))+IF(W$8=" ",0,W12*(INPUT!S$34/INPUT!Z$34))+IF(X$8=" ",0,X12*(INPUT!T$34/INPUT!Z$34))+IF(Y$8=" ",0,Y12*(INPUT!U$34/INPUT!Z$34))+IF(Z$8=" ",0,Z12*(INPUT!V$34/INPUT!Z$34))+IF(AA$8=" ",0,AA12*(INPUT!W$34/INPUT!Z$34))+IF(AB$8=" ",0,AB12*(INPUT!X$34/INPUT!Z$34))+IF(AC$8=" ",0,AC12*(INPUT!Y$34/INPUT!Z$34)))) -> 
B13: PPMT | D13: =+IF(SUM(PPMT)=0," ",AVERAGE(PPMT)) -> 301.3638185 | E13: =+IF(OR(SUM(PPMT)=0,E8=" ")," ",AVERAGE(IF(Group=E6,PPMT))) -> 78.2686457 | F13: =+IF(OR(SUM(PPMT)=0,F8=" ")," ",AVERAGE(IF(Group=F6,PPMT))) -> 316.5787849 | G13: =+IF(OR(SUM(PPMT)=0,G8=" ")," ",AVERAGE(IF(Group=G6,PPMT))) -> 727.0247334 | H13: =+IF(OR(SUM(PPMT)=0,H8=" ")," ",AVERAGE(IF(Group=H6,PPMT))) ->  | I13: =+IF(OR(SUM(PPMT)=0,I8=" ")," ",AVERAGE(IF(Group=I6,PPMT))) ->  | J13: =+IF(OR(SUM(PPMT)=0,J8=" ")," ",AVERAGE(IF(Group=J6,PPMT))) ->  | K13: =+IF(OR(SUM(PPMT)=0,K8=" ")," ",AVERAGE(IF(Group=K6,PPMT))) ->  | L13: =+IF(OR(SUM(PPMT)=0,L8=" ")," ",AVERAGE(IF(Group=L6,PPMT))) ->  | M13: =+IF(OR(SUM(PPMT)=0,M8=" ")," ",AVERAGE(IF(Group=M6,PPMT))) ->  | N13: =+IF(OR(SUM(PPMT)=0,N8=" ")," ",AVERAGE(IF(Group=N6,PPMT))) ->  | O13: =+IF(SUM(INPUT!D34:M34)=0," ",IF(SUM(E13:N13)=0," ",IF(E$8=" ",0,E13*(INPUT!D$34/INPUT!N$34)+IF(F$8=" ",0,F13*(INPUT!E$34/INPUT!N$34))+IF(G$8=" ",0,G13*(INPUT!F$34/INPUT!N$34))+IF(H$8=" ",0,H13*(INPUT!G$34/INPUT!N$34))+IF(I$8=" ",0,I13*(INPUT!H$34/INPUT!N$34))+IF(J$8=" ",0,J13*(INPUT!I$34/INPUT!N$34))+IF(K$8=" ",0,K13*(INPUT!J$34/INPUT!N$34))+IF(L$8=" ",0,L13*(INPUT!K$34/INPUT!N$34))+IF(M$8=" ",0,M13*(INPUT!L$34/INPUT!N$34))+IF(N$8=" ",0,N13*(INPUT!M$34/INPUT!N$34))))) -> 292.1271188 | Q13: PPMT | S13: =+IF(SUM(PPMT_orig)=0," ",AVERAGE(PPMT_orig)) ->  | T13: =+IF(OR(SUM(PPMT_orig)=0,T8=" ")," ",AVERAGE(IF(Group_orig=T6,PPMT_orig))) ->  | U13: =+IF(OR(SUM(PPMT_orig)=0,U8=" ")," ",AVERAGE(IF(Group_orig=U6,PPMT_orig))) ->  | V13: =+IF(OR(SUM(PPMT_orig)=0,V8=" ")," ",AVERAGE(IF(Group_orig=V6,PPMT_orig))) ->  | W13: =+IF(OR(SUM(PPMT_orig)=0,W8=" ")," ",AVERAGE(IF(Group_orig=W6,PPMT_orig))) ->  | X13: =+IF(OR(SUM(PPMT_orig)=0,X8=" ")," ",AVERAGE(IF(Group_orig=X6,PPMT_orig))) ->  | Y13: =+IF(OR(SUM(PPMT_orig)=0,Y8=" ")," ",AVERAGE(IF(Group_orig=Y6,PPMT_orig))) ->  | Z13: =+IF(OR(SUM(PPMT_orig)=0,Z8=" ")," ",AVERAGE(IF(Group_orig=Z6,PPMT_orig))) ->  | AA13: =+IF(OR(SUM(PPMT_orig)=0,AA8=" ")," ",AVERAGE(IF(Group_orig=AA6,PPMT_orig))) ->  | AB13: =+IF(OR(SUM(PPMT_orig)=0,AB8=" ")," ",AVERAGE(IF(Group_orig=AB6,PPMT_orig))) ->  | AC13: =+IF(OR(SUM(PPMT_orig)=0,AC8=" ")," ",AVERAGE(IF(Group_orig=AC6,PPMT_orig))) ->  | AD13: =+IF(SUM(SizeActual_orig)=0," ",IF(SUM(T13:AC13)=0," ",IF(T$8=" ",0,T13*(INPUT!P$34/INPUT!Z$34))+IF(U$8=" ",0,U13*(INPUT!Q$34/INPUT!Z$34))+IF(V$8=" ",0,V13*(INPUT!R$34/INPUT!Z$34))+IF(W$8=" ",0,W13*(INPUT!S$34/INPUT!Z$34))+IF(X$8=" ",0,X13*(INPUT!T$34/INPUT!Z$34))+IF(Y$8=" ",0,Y13*(INPUT!U$34/INPUT!Z$34))+IF(Z$8=" ",0,Z13*(INPUT!V$34/INPUT!Z$34))+IF(AA$8=" ",0,AA13*(INPUT!W$34/INPUT!Z$34))+IF(AB$8=" ",0,AB13*(INPUT!X$34/INPUT!Z$34))+IF(AC$8=" ",0,AC13*(INPUT!Y$34/INPUT!Z$34)))) -> 
B14: APTL | D14: =+IF(OR(SUM(UPT)=0,SUM(PMT)=0)," ",D12/D11) -> 4.936642269 | E14: =+IF(OR(SUM(UPT)=0,SUM(PMT)=0,E8=" ")," ",E12/E11) -> 3.447536733 | F14: =+IF(OR(SUM(UPT)=0,SUM(PMT)=0,F8=" ")," ",F12/F11) -> 5.251900746 | G14: =+IF(OR(SUM(UPT)=0,SUM(PMT)=0,G8=" ")," ",G12/G11) -> 4.398806533 | H14: =+IF(OR(SUM(UPT)=0,SUM(PMT)=0,H8=" ")," ",H12/H11) ->  | I14: =+IF(OR(SUM(UPT)=0,SUM(PMT)=0,I8=" ")," ",I12/I11) ->  | J14: =+IF(OR(SUM(UPT)=0,SUM(PMT)=0,J8=" ")," ",J12/J11) ->  | K14: =+IF(OR(SUM(UPT)=0,SUM(PMT)=0,K8=" ")," ",K12/K11) ->  | L14: =+IF(OR(SUM(UPT)=0,SUM(PMT)=0,L8=" ")," ",L12/L11) ->  | M14: =+IF(OR(SUM(UPT)=0,SUM(PMT)=0,M8=" ")," ",M12/M11) ->  | N14: =+IF(OR(SUM(UPT)=0,SUM(PMT)=0,N8=" ")," ",N12/N11) ->  | O14: =+IF(O12=" "," ",IF(SUM(E14:N14)=0," ",O12/O11)) -> 4.930110756 | Q14: APTL | S14: =+IF(OR(SUM(UPT_orig)=0,SUM(PMT_orig)=0)," ",S12/S11) ->  | T14: =+IF(OR(SUM(UPT_orig)=0,SUM(PMT_orig)=0,T8=" ")," ",T12/T11) ->  | AD14: =+IF(AD12=" "," ",IF(SUM(T14:AC14)=0," ",AD12/AD11)) -> 
B15: PMT/PPMT | D15: =+IF(OR(SUM(PMT)=0,SUM(PPMT)=0)," ",D12/D13) -> 0.3261282086 | E15: =+IF(OR(SUM(PMT)=0,SUM(PPMT)=0,E8=" ")," ",E12/E13) -> 0.4393356572 | F15: =+IF(OR(SUM(PMT)=0,SUM(PPMT)=0,F8=" ")," ",F12/F13) -> 0.3516039861 | G15: =+IF(OR(SUM(PMT)=0,SUM(PPMT)=0,G8=" ")," ",G12/G13) -> 0.2049419579 | H15: =+IF(OR(SUM(PMT)=0,SUM(PPMT)=0,H8=" ")," ",H12/H13) ->  | I15: =+IF(OR(SUM(PMT)=0,SUM(PPMT)=0,I8=" ")," ",I12/I13) ->  | J15: =+IF(OR(SUM(PMT)=0,SUM(PPMT)=0,J8=" ")," ",J12/J13) ->  | K15: =+IF(OR(SUM(PMT)=0,SUM(PPMT)=0,K8=" ")," ",K12/K13) ->  | L15: =+IF(OR(SUM(PMT)=0,SUM(PPMT)=0,L8=" ")," ",L12/L13) ->  | M15: =+IF(OR(SUM(PMT)=0,SUM(PPMT)=0,M8=" ")," ",M12/M13) ->  | N15: =+IF(OR(SUM(PMT)=0,SUM(PPMT)=0,N8=" ")," ",N12/N13) ->  | O15: =+IF(O12=" "," ",IF(SUM(E15:N15)=0," ",O12/O13)) -> 0.3299347869 | Q15: PMT/PPMT | S15: =+IF(OR(SUM(PMT_orig)=0,SUM(PPMT_orig)=0)," ",S12/S13) ->  | T15: =+IF(OR(SUM(PMT_orig)=0,SUM(PPMT_orig)=0,T8=" ")," ",T12/T13) ->  | AD15: =+IF(AD12=" "," ",IF(SUM(T15:AC15)=0," ",AD12/AD13)) -> 
B17: Unit Coefficient of Variation | Q17: Unit Coefficient of Variation
B18: UPT | D18: =+IF(SUM(UPT)=0," ",SQRT(VAR(UPT))/D11) -> 0.765570861 | E18: =+IF(OR(SUM(UPT)=0,E8=" ")," ",SQRT(VAR(IF(Group=E6,UPT)))/E11) -> 0.9414872437 | F18: =+IF(OR(SUM(UPT)=0,F8=" ")," ",SQRT(VAR(IF(Group=F6,UPT)))/F11) -> 0.6673670904 | G18: =+IF(OR(SUM(UPT)=0,G8=" ")," ",SQRT(VAR(IF(Group=G6,UPT)))/G11) -> 0.5982504756 | H18: =+IF(OR(SUM(UPT)=0,H8=" ")," ",SQRT(VAR(IF(Group=H6,UPT)))/H11) ->  | I18: =+IF(OR(SUM(UPT)=0,I8=" ")," ",SQRT(VAR(IF(Group=I6,UPT)))/I11) ->  | J18: =+IF(OR(SUM(UPT)=0,J8=" ")," ",SQRT(VAR(IF(Group=J6,UPT)))/J11) ->  | K18: =+IF(OR(SUM(UPT)=0,K8=" ")," ",SQRT(VAR(IF(Group=K6,UPT)))/K11) ->  | L18: =+IF(OR(SUM(UPT)=0,L8=" ")," ",SQRT(VAR(IF(Group=L6,UPT)))/L11) ->  | M18: =+IF(OR(SUM(UPT)=0,M8=" ")," ",SQRT(VAR(IF(Group=M6,UPT)))/M11) ->  | N18: =+IF(OR(SUM(UPT)=0,N8=" ")," ",SQRT(VAR(IF(Group=N6,UPT)))/N11) ->  | O18: =+IF(SUM(INPUT!D34:M34)=0," ",IF(SUM(E18:N18)=0," ",SQRT(IF(E$8=" ",0,(INPUT!D$34/INPUT!N$34)*($E18*$E11)^2)+IF(F$8=" ",0,(INPUT!E$34/INPUT!N$34)*($F18*$F11)^2)+IF(G$8=" ",0,(INPUT!F$34/INPUT!N$34)*($G18*$G11)^2)+IF(H$8=" ",0,(INPUT!G$34/INPUT!N$34)*($H18*$H11)^2)+IF(I$8=" ",0,(INPUT!H$34/INPUT!N$34)*($I18*$I11)^2)+IF(J$8=" ",0,(INPUT!I$34/INPUT!N$34)*($J18*$J11)^2)+IF(K$8=" ",0,(INPUT!J$34/INPUT!N$34)*($K18*$K11)^2)+IF(L$8=" ",0,(INPUT!K$34/INPUT!N$34)*($L18*$L11)^2)+IF(M$8=" ",0,(INPUT!L$34/INPUT!N$34)*($M18*$M11)^2)+IF(N$8=" ",0,(INPUT!M$34/INPUT!N$34)*($N18*$N11)^2))/O11)) -> 0.7049058582 | Q18: UPT | S18: =+IF(SUM(UPT_orig)=0," ",SQRT(VAR(UPT_orig))/S11) ->  | T18: =+IF(OR(SUM(UPT_orig)=0,T8=" ")," ",SQRT(VAR(IF(Group_orig=T6,UPT_orig)))/T11) ->  | U18: =+IF(OR(SUM(UPT_orig)=0,U8=" ")," ",SQRT(VAR(IF(Group_orig=U6,UPT_orig)))/U11) ->  | V18: =+IF(OR(SUM(UPT_orig)=0,V8=" ")," ",SQRT(VAR(IF(Group_orig=V6,UPT_orig)))/V11) ->  | W18: =+IF(OR(SUM(UPT_orig)=0,W8=" ")," ",SQRT(VAR(IF(Group_orig=W6,UPT_orig)))/W11) ->  | X18: =+IF(OR(SUM(UPT_orig)=0,X8=" ")," ",SQRT(VAR(IF(Group_orig=X6,UPT_orig)))/X11) ->  | Y18: =+IF(OR(SUM(UPT_orig)=0,Y8=" ")," ",SQRT(VAR(IF(Group_orig=Y6,UPT_orig)))/Y11) ->  | Z18: =+IF(OR(SUM(UPT_orig)=0,Z8=" ")," ",SQRT(VAR(IF(Group_orig=Z6,UPT_orig)))/Z11) ->  | AA18: =+IF(OR(SUM(UPT_orig)=0,AA8=" ")," ",SQRT(VAR(IF(Group_orig=AA6,UPT_orig)))/AA11) ->  | AB18: =+IF(OR(SUM(UPT_orig)=0,AB8=" ")," ",SQRT(VAR(IF(Group_orig=AB6,UPT_orig)))/AB11) ->  | AC18: =+IF(OR(SUM(UPT_orig)=0,AC8=" ")," ",SQRT(VAR(IF(Group_orig=AC6,UPT_orig)))/AC11) ->  | AD18: =+IF(SUM(INPUT!P$34:Y$34)=0," ",IF(SUM(T18:AC18)=0," ",SQRT(IF(T$8=" ",0,(INPUT!P$34/INPUT!Z$34)*($T18*$T11)^2)+IF(U$8=" ",0,(INPUT!Q$34/INPUT!Z$34)*($U18*$U11)^2)+IF(V$8=" ",0,(INPUT!R$34/INPUT!Z$34)*($V18*$V11)^2)+IF(W$8=" ",0,(INPUT!S$34/INPUT!Z$34)*($W18*$W11)^2)+IF(X$8=" ",0,(INPUT!T$34/INPUT!Z$34)*($X18*$X11)^2)+IF(Y$8=" ",0,(INPUT!U$34/INPUT!Z$34)*($Y18*$Y11)^2)+IF(Z$8=" ",0,(INPUT!V$34/INPUT!Z$34)*($Z18*$Z11)^2)+IF(AA$8=" ",0,(INPUT!W$34/INPUT!Z$34)*($AA18*$AA11)^2)+IF(AB$8=" ",0,(INPUT!X$34/INPUT!Z$34)*($AB18*$AB11)^2)+IF(AC$8=" ",0,(INPUT!Y$34/INPUT!Z$34)*($AC18*$AC11)^2))/AD11)) -> 
B19: PMT | D19: =+IF(SUM(PMT)=0," ",SQRT(VAR(PMT))/D12) -> 0.8504227827 | E19: =+IF(OR(SUM(PMT)=0,E8=" ")," ",SQRT(VAR(IF(Group=E6,PMT)))/E12) -> 1.163712149 | F19: =+IF(OR(SUM(PMT)=0,F8=" ")," ",SQRT(VAR(IF(Group=F6,PMT)))/F12) -> 0.7369923133 | G19: =+IF(OR(SUM(PMT)=0,G8=" ")," ",SQRT(VAR(IF(Group=G6,PMT)))/G12) -> 0.6205438457 | H19: =+IF(OR(SUM(PMT)=0,H8=" ")," ",SQRT(VAR(IF(Group=H6,PMT)))/H12) ->  | I19: =+IF(OR(SUM(PMT)=0,I8=" ")," ",SQRT(VAR(IF(Group=I6,PMT)))/I12) ->  | J19: =+IF(OR(SUM(PMT)=0,J8=" ")," ",SQRT(VAR(IF(Group=J6,PMT)))/J12) ->  | K19: =+IF(OR(SUM(PMT)=0,K8=" ")," ",SQRT(VAR(IF(Group=K6,PMT)))/K12) ->  | L19: =+IF(OR(SUM(PMT)=0,L8=" ")," ",SQRT(VAR(IF(Group=L6,PMT)))/L12) ->  | M19: =+IF(OR(SUM(PMT)=0,M8=" ")," ",SQRT(VAR(IF(Group=M6,PMT)))/M12) ->  | N19: =+IF(OR(SUM(PMT)=0,N8=" ")," ",SQRT(VAR(IF(Group=N6,PMT)))/N12) ->  | O19: =+IF(SUM(INPUT!D34:M34)=0," ",IF(SUM(E19:N19)=0," ",SQRT(IF(E$8=" ",0,(INPUT!D$34/INPUT!N$34)*($E19*$E$12)^2)+IF(F$8=" ",0,(INPUT!E$34/INPUT!N$34)*($F19*$F$12)^2)+IF(G$8=" ",0,(INPUT!F$34/INPUT!N$34)*($G19*$G$12)^2)+IF(H$8=" ",0,(INPUT!G$34/INPUT!N$34)*($H19*$H$12)^2)+IF(I$8=" ",0,(INPUT!H$34/INPUT!N$34)*($I19*$I$12)^2)+IF(J$8=" ",0,(INPUT!I$34/INPUT!N$34)*($J19*$J$12)^2)+IF(K$8=" ",0,(INPUT!J$34/INPUT!N$34)*($K19*$K$12)^2)+IF(L$8=" ",0,(INPUT!K$34/INPUT!N$34)*($L19*$L$12)^2)+IF(M$8=" ",0,(INPUT!L$34/INPUT!N$34)*($M19*$M$12)^2)+IF(N$8=" ",0,(INPUT!M$34/INPUT!N$34)*($N19*$N$12)^2))/O$12)) -> 0.7821517707 | Q19: PMT | S19: =+IF(SUM(PMT_orig)=0," ",SQRT(VAR(PMT_orig))/S12) ->  | T19: =+IF(OR(SUM(PMT_orig)=0,T8=" ")," ",SQRT(VAR(IF(Group_orig=T6,PMT_orig)))/T12) ->  | U19: =+IF(OR(SUM(PMT_orig)=0,U8=" ")," ",SQRT(VAR(IF(Group_orig=U6,PMT_orig)))/U12) ->  | V19: =+IF(OR(SUM(PMT_orig)=0,V8=" ")," ",SQRT(VAR(IF(Group_orig=V6,PMT_orig)))/V12) ->  | W19: =+IF(OR(SUM(PMT_orig)=0,W8=" ")," ",SQRT(VAR(IF(Group_orig=W6,PMT_orig)))/W12) ->  | X19: =+IF(OR(SUM(PMT_orig)=0,X8=" ")," ",SQRT(VAR(IF(Group_orig=X6,PMT_orig)))/X12) ->  | Y19: =+IF(OR(SUM(PMT_orig)=0,Y8=" ")," ",SQRT(VAR(IF(Group_orig=Y6,PMT_orig)))/Y12) ->  | Z19: =+IF(OR(SUM(PMT_orig)=0,Z8=" ")," ",SQRT(VAR(IF(Group_orig=Z6,PMT_orig)))/Z12) ->  | AA19: =+IF(OR(SUM(PMT_orig)=0,AA8=" ")," ",SQRT(VAR(IF(Group_orig=AA6,PMT_orig)))/AA12) ->  | AB19: =+IF(OR(SUM(PMT_orig)=0,AB8=" ")," ",SQRT(VAR(IF(Group_orig=AB6,PMT_orig)))/AB12) ->  | AC19: =+IF(OR(SUM(PMT_orig)=0,AC8=" ")," ",SQRT(VAR(IF(Group_orig=AC6,PMT_orig)))/AC12) ->  | AD19: =+IF(SUM(INPUT!P$34:Y$34)=0," ",IF(SUM(T19:AC19)=0," ",SQRT(IF(T$8=" ",0,(INPUT!P$34/INPUT!Z$34)*($T19*$T12)^2)+IF(U$8=" ",0,(INPUT!Q$34/INPUT!Z$34)*($U19*$U12)^2)+IF(V$8=" ",0,(INPUT!R$34/INPUT!Z$34)*($V19*$V12)^2)+IF(W$8=" ",0,(INPUT!S$34/INPUT!Z$34)*($W19*$W12)^2)+IF(X$8=" ",0,(INPUT!T$34/INPUT!Z$34)*($X19*$X12)^2)+IF(Y$8=" ",0,(INPUT!U$34/INPUT!Z$34)*($Y19*$Y12)^2)+IF(Z$8=" ",0,(INPUT!V$34/INPUT!Z$34)*($Z19*$Z12)^2)+IF(AA$8=" ",0,(INPUT!W$34/INPUT!Z$34)*($AA19*$AA12)^2)+IF(AB$8=" ",0,(INPUT!X$34/INPUT!Z$34)*($AB19*$AB12)^2)+IF(AC$8=" ",0,(INPUT!Y$34/INPUT!Z$34)*($AC19*$AC12)^2))/AD12)) -> 
B20: PPMT | D20: =+IF(SUM(PPMT)=0," ",SQRT(VAR(PPMT))/D13) -> 0.971614803 | E20: =+IF(OR(SUM(PPMT)=0,E8=" ")," ",SQRT(VAR(IF(Group=E6,PPMT)))/E13) -> 1.072667232 | F20: =+IF(OR(SUM(PPMT)=0,F8=" ")," ",SQRT(VAR(IF(Group=F6,PPMT)))/F13) -> 0.7663692558 | G20: =+IF(OR(SUM(PPMT)=0,G8=" ")," ",SQRT(VAR(IF(Group=G6,PPMT)))/G13) -> 0.6128762618 | H20: =+IF(OR(SUM(PPMT)=0,H8=" ")," ",SQRT(VAR(IF(Group=H6,PPMT)))/H13) ->  | I20: =+IF(OR(SUM(PPMT)=0,I8=" ")," ",SQRT(VAR(IF(Group=I6,PPMT)))/I13) ->  | J20: =+IF(OR(SUM(PPMT)=0,J8=" ")," ",SQRT(VAR(IF(Group=J6,PPMT)))/J13) ->  | K20: =+IF(OR(SUM(PPMT)=0,K8=" ")," ",SQRT(VAR(IF(Group=K6,PPMT)))/K13) ->  | L20: =+IF(OR(SUM(PPMT)=0,L8=" ")," ",SQRT(VAR(IF(Group=L6,PPMT)))/L13) ->  | M20: =+IF(OR(SUM(PPMT)=0,M8=" ")," ",SQRT(VAR(IF(Group=M6,PPMT)))/M13) ->  | N20: =+IF(OR(SUM(PPMT)=0,N8=" ")," ",SQRT(VAR(IF(Group=N6,PPMT)))/N13) ->  | O20: =+IF(SUM(INPUT!D34:M34)=0," ",IF(SUM(E20:N20)=0," ",SQRT(IF(E$8=" ",0,(INPUT!D$34/INPUT!N$34)*($E20*$E13)^2)+IF(F$8=" ",0,(INPUT!E$34/INPUT!N$34)*($F20*$F13)^2)+IF(G$8=" ",0,(INPUT!F$34/INPUT!N$34)*($G20*$G13)^2)+IF(H$8=" ",0,(INPUT!G$34/INPUT!N$34)*($H20*$H13)^2)+IF(I$8=" ",0,(INPUT!H$34/INPUT!N$34)*($I20*$I13)^2)+IF(J$8=" ",0,(INPUT!I$34/INPUT!N$34)*($J20*$J13)^2)+IF(K$8=" ",0,(INPUT!J$34/INPUT!N$34)*($K20*$K13)^2)+IF(L$8=" ",0,(INPUT!K$34/INPUT!N$34)*($L20*$L13)^2)+IF(M$8=" ",0,(INPUT!L$34/INPUT!N$34)*($M20*$M13)^2)+IF(N$8=" ",0,(INPUT!M$34/INPUT!N$34)*($N20*$N13)^2))/O13)) -> 0.8193383355 | Q20: PPMT | S20: =+IF(SUM(PPMT_orig)=0," ",SQRT(VAR(PPMT_orig))/S13) ->  | T20: =+IF(OR(SUM(PPMT_orig)=0,T8=" ")," ",SQRT(VAR(IF(Group_orig=T6,PPMT_orig)))/T13) ->  | U20: =+IF(OR(SUM(PPMT_orig)=0,U8=" ")," ",SQRT(VAR(IF(Group_orig=U6,PPMT_orig)))/U13) ->  | V20: =+IF(OR(SUM(PPMT_orig)=0,V8=" ")," ",SQRT(VAR(IF(Group_orig=V6,PPMT_orig)))/V13) ->  | W20: =+IF(OR(SUM(PPMT_orig)=0,W8=" ")," ",SQRT(VAR(IF(Group_orig=W6,PPMT_orig)))/W13) ->  | X20: =+IF(OR(SUM(PPMT_orig)=0,X8=" ")," ",SQRT(VAR(IF(Group_orig=X6,PPMT_orig)))/X13) ->  | Y20: =+IF(OR(SUM(PPMT_orig)=0,Y8=" ")," ",SQRT(VAR(IF(Group_orig=Y6,PPMT_orig)))/Y13) ->  | Z20: =+IF(OR(SUM(PPMT_orig)=0,Z8=" ")," ",SQRT(VAR(IF(Group_orig=Z6,PPMT_orig)))/Z13) ->  | AA20: =+IF(OR(SUM(PPMT_orig)=0,AA8=" ")," ",SQRT(VAR(IF(Group_orig=AA6,PPMT_orig)))/AA13) ->  | AB20: =+IF(OR(SUM(PPMT_orig)=0,AB8=" ")," ",SQRT(VAR(IF(Group_orig=AB6,PPMT_orig)))/AB13) ->  | AC20: =+IF(OR(SUM(PPMT_orig)=0,AC8=" ")," ",SQRT(VAR(IF(Group_orig=AC6,PPMT_orig)))/AC13) ->  | AD20: =+IF(SUM(INPUT!P$34:Y$34)=0," ",IF(SUM(T20:AC20)=0," ",SQRT(IF(T$8=" ",0,(INPUT!P$34/INPUT!Z$34)*($T20*$T13)^2)+IF(U$8=" ",0,(INPUT!Q$34/INPUT!Z$34)*($U20*$U13)^2)+IF(V$8=" ",0,(INPUT!R$34/INPUT!Z$34)*($V20*$V13)^2)+IF(W$8=" ",0,(INPUT!S$34/INPUT!Z$34)*($W20*$W13)^2)+IF(X$8=" ",0,(INPUT!T$34/INPUT!Z$34)*($X20*$X13)^2)+IF(Y$8=" ",0,(INPUT!U$34/INPUT!Z$34)*($Y20*$Y13)^2)+IF(Z$8=" ",0,(INPUT!V$34/INPUT!Z$34)*($Z20*$Z13)^2)+IF(AA$8=" ",0,(INPUT!W$34/INPUT!Z$34)*($AA20*$AA13)^2)+IF(AB$8=" ",0,(INPUT!X$34/INPUT!Z$34)*($AB20*$AB13)^2)+IF(AC$8=" ",0,(INPUT!Y$34/INPUT!Z$34)*($AC20*$AC13)^2))/AD13)) -> 
B21: APTL-100% UPT by Group | D21: =+IF(OR(SUM(UPT)=0,SUM(PMT)=0)," ",SQRT(D18^2+D19^2-2*D26*(D18*D19))) -> 0.3798236942 | E21: =+IF(OR(SUM(UPT)=0,SUM(PMT)=0,E$8=" ")," ",SQRT(E$19^2+E$18^2-2*E$26*(E$19*E$18))) -> 0.434028486 | F21: 0.3585425348 | G21: 0.2277077039 | O21: =+IF(SUM(INPUT!D$34:M$34)=0," ",IF(SUM(E21:N21)=0," ",SQRT(IF(E$8=" ",0,(INPUT!D$34/INPUT!N$34)*($E21*$E$12)^2)+IF(F$8=" ",0,(INPUT!E$34/INPUT!N$34)*($F21*$F$12)^2)+IF(G$8=" ",0,(INPUT!F$34/INPUT!N$34)*($G21*$G$12)^2)+IF(H$8=" ",0,(INPUT!G$34/INPUT!N$34)*($H21*$H$12)^2)+IF(I$8=" ",0,(INPUT!H$34/INPUT!N$34)*($I21*$I$12)^2)+IF(J$8=" ",0,(INPUT!I$34/INPUT!N$34)*($J21*$J$12)^2)+IF(K$8=" ",0,(INPUT!J$34/INPUT!N$34)*($K21*$K$12)^2)+IF(L$8=" ",0,(INPUT!K$34/INPUT!N$34)*($L21*$L$12)^2)+IF(M$8=" ",0,(INPUT!L$34/INPUT!N$34)*($M21*$M$12)^2)+IF(N$8=" ",0,(INPUT!M$34/INPUT!N$34)*($N21*$N$12)^2))/O$12)) -> 0.365988404 | Q21: APTL-100% UPT by Group | S21: =+IF(OR(SUM(UPT_orig)=0,SUM(PMT_orig)=0)," ",SQRT(S18^2+S19^2-2*S26*(S18*S19))) ->  | T21: =+IF(OR(SUM(UPT_orig)=0,SUM(PMT_orig)=0,T$8=" ")," ",SQRT(T$19^2+T$18^2-2*T$26*(T$19*T$18))) ->  | AD21: =+IF(SUM(INPUT!P$34:Y$34)=0," ",IF(SUM(T21:AC21)=0," ",SQRT(IF(T$8=" ",0,(INPUT!P$34/INPUT!Z$34)*($T21*$T12)^2)+IF(U$8=" ",0,(INPUT!Q$34/INPUT!Z$34)*($U21*$U12)^2)+IF(V$8=" ",0,(INPUT!R$34/INPUT!Z$34)*($V21*$V12)^2)+IF(W$8=" ",0,(INPUT!S$34/INPUT!Z$34)*($W21*$W12)^2)+IF(X$8=" ",0,(INPUT!T$34/INPUT!Z$34)*($X21*$X12)^2)+IF(Y$8=" ",0,(INPUT!U$34/INPUT!Z$34)*($Y21*$Y12)^2)+IF(Z$8=" ",0,(INPUT!V$34/INPUT!Z$34)*($Z21*$Z12)^2)+IF(AA$8=" ",0,(INPUT!W$34/INPUT!Z$34)*($AA21*$AA12)^2)+IF(AB$8=" ",0,(INPUT!X$34/INPUT!Z$34)*($AB21*$AB12)^2)+IF(AC$8=" ",0,(INPUT!Y$34/INPUT!Z$34)*($AC21*$AC12)^2))/AD12)) -> 
B22: APTL-100% UPT Total | D22: N/A | E22: =+IF(OR(SUM(UPT)=0,SUM(PMT)=0,E$8=" ")," ",SQRT(E$19^2+($O14/E14)^2*E$18^2-2*E$26*($O14/E14)*(E$19*E$18))) -> 0.4818010034 | F22: 0.3582446327 | G22: 0.2450572661 | O22: =+IF(SUM(INPUT!D$34:M$34)=0," ",IF(SUM(E22:N22)=0," ",SQRT(IF(E$8=" ",0,(INPUT!D$34/INPUT!N$34)*($E22*$E$12)^2)+IF(F$8=" ",0,(INPUT!E$34/INPUT!N$34)*($F22*$F$12)^2)+IF(G$8=" ",0,(INPUT!F$34/INPUT!N$34)*($G22*$G$12)^2)+IF(H$8=" ",0,(INPUT!G$34/INPUT!N$34)*($H22*$H$12)^2)+IF(I$8=" ",0,(INPUT!H$34/INPUT!N$34)*($I22*$I$12)^2)+IF(J$8=" ",0,(INPUT!I$34/INPUT!N$34)*($J22*$J$12)^2)+IF(K$8=" ",0,(INPUT!J$34/INPUT!N$34)*($K22*$K$12)^2)+IF(L$8=" ",0,(INPUT!K$34/INPUT!N$34)*($L22*$L$12)^2)+IF(M$8=" ",0,(INPUT!L$34/INPUT!N$34)*($M22*$M$12)^2)+IF(N$8=" ",0,(INPUT!M$34/INPUT!N$34)*($N22*$N$12)^2))/O$12)) -> 0.3694416443 | Q22: APTL-100% UPT Total | S22: N/A | T22: =+IF(OR(SUM(UPT_orig)=0,SUM(PMT_orig)=0,T$8=" ")," ",SQRT(T$19^2+($O14/T14)^2*T$18^2-2*T$26*($O14/T14)*(T$19*T$18))) ->  | AD22: =+IF(SUM(INPUT!P$34:Y$34)=0," ",IF(SUM(T22:AC22)=0," ",SQRT(IF(T$8=" ",0,(INPUT!P$34/INPUT!Z$34)*($T22*$T12)^2)+IF(U$8=" ",0,(INPUT!Q$34/INPUT!Z$34)*($U22*$U12)^2)+IF(V$8=" ",0,(INPUT!R$34/INPUT!Z$34)*($V22*$V12)^2)+IF(W$8=" ",0,(INPUT!S$34/INPUT!Z$34)*($W22*$W12)^2)+IF(X$8=" ",0,(INPUT!T$34/INPUT!Z$34)*($X22*$X12)^2)+IF(Y$8=" ",0,(INPUT!U$34/INPUT!Z$34)*($Y22*$Y12)^2)+IF(Z$8=" ",0,(INPUT!V$34/INPUT!Z$34)*($Z22*$Z12)^2)+IF(AA$8=" ",0,(INPUT!W$34/INPUT!Z$34)*($AA22*$AA12)^2)+IF(AB$8=" ",0,(INPUT!X$34/INPUT!Z$34)*($AB22*$AB12)^2)+IF(AC$8=" ",0,(INPUT!Y$34/INPUT!Z$34)*($AC22*$AC12)^2))/AD12)) -> 
B23: PMT/PPMT | D23: =+IF(OR(SUM(PMT)=0,SUM(PPMT)=0)," ",SQRT(D19^2+D20^2-2*D27*(D19*D20))) -> 0.4923216971 | E23: =+IF(OR(SUM(PMT)=0,SUM(PPMT)=0,E$8=" ")," ",SQRT(E$19^2+E$20^2-2*E$27*(E$20*E$19))) -> 0.6103955482 | F23: 0.3730213783 | G23: 0.2291576936 | O23: =+IF(SUM(INPUT!D$34:M$34)=0," ",IF(SUM(E23:N23)=0," ",SQRT(IF(E$8=" ",0,(INPUT!D$34/INPUT!N$34)*($E23*$E$12)^2)+IF(F$8=" ",0,(INPUT!E$34/INPUT!N$34)*($F23*$F$12)^2)+IF(G$8=" ",0,(INPUT!F$34/INPUT!N$34)*($G23*$G$12)^2)+IF(H$8=" ",0,(INPUT!G$34/INPUT!N$34)*($H23*$H$12)^2)+IF(I$8=" ",0,(INPUT!H$34/INPUT!N$34)*($I23*$I$12)^2)+IF(J$8=" ",0,(INPUT!I$34/INPUT!N$34)*($J23*$J$12)^2)+IF(K$8=" ",0,(INPUT!J$34/INPUT!N$34)*($K23*$K$12)^2)+IF(L$8=" ",0,(INPUT!K$34/INPUT!N$34)*($L23*$L$12)^2)+IF(M$8=" ",0,(INPUT!L$34/INPUT!N$34)*($M23*$M$12)^2)+IF(N$8=" ",0,(INPUT!M$34/INPUT!N$34)*($N23*$N$12)^2))/O$12)) -> 0.3863818992 | Q23: PMT/PPMT | S23: =+IF(OR(SUM(PMT_orig)=0,SUM(PPMT_orig)=0)," ",SQRT(S19^2+S20^2-2*S27*(S19*S20))) ->  | T23: =+IF(OR(SUM(PMT_orig)=0,SUM(PPMT_orig)=0,T$8=" ")," ",SQRT(T$19^2+T$20^2-2*T$27*(T$20*T$19))) ->  | AD23: =+IF(SUM(INPUT!P$34:Y$34)=0," ",IF(SUM(T23:AC23)=0," ",SQRT(IF(T$8=" ",0,(INPUT!P$34/INPUT!Z$34)*($T23*$T12)^2)+IF(U$8=" ",0,(INPUT!Q$34/INPUT!Z$34)*($U23*$U12)^2)+IF(V$8=" ",0,(INPUT!R$34/INPUT!Z$34)*($V23*$V12)^2)+IF(W$8=" ",0,(INPUT!S$34/INPUT!Z$34)*($W23*$W12)^2)+IF(X$8=" ",0,(INPUT!T$34/INPUT!Z$34)*($X23*$X12)^2)+IF(Y$8=" ",0,(INPUT!U$34/INPUT!Z$34)*($Y23*$Y12)^2)+IF(Z$8=" ",0,(INPUT!V$34/INPUT!Z$34)*($Z23*$Z12)^2)+IF(AA$8=" ",0,(INPUT!W$34/INPUT!Z$34)*($AA23*$AA12)^2)+IF(AB$8=" ",0,(INPUT!X$34/INPUT!Z$34)*($AB23*$AB12)^2)+IF(AC$8=" ",0,(INPUT!Y$34/INPUT!Z$34)*($AC23*$AC12)^2))/AD12)) -> 
B25: Correlation Coefficient | Q25: Correlation Coefficient
B26: UPT & PMT | D26: =+IF(OR(SUM(UPT)=0,SUM(PMT)=0)," ",CORREL(UPT,PMT)) -> 0.8947359527 | E26: =+IF(OR(SUM(UPT)=0,SUM(PMT)=0,E8=" ")," ",CORREL(IF(Group=E6,UPT),IF(Group=E6,PMT))) -> 0.9365670579 | F26: =+IF(OR(SUM(UPT)=0,SUM(PMT)=0,F8=" ")," ",CORREL(IF(Group=F6,UPT),IF(Group=F6,PMT))) -> 0.87424369 | G26: =+IF(OR(SUM(UPT)=0,SUM(PMT)=0,G8=" ")," ",CORREL(IF(Group=G6,UPT),IF(Group=G6,PMT))) -> 0.9308348858 | H26: =+IF(OR(SUM(UPT)=0,SUM(PMT)=0,H8=" ")," ",CORREL(IF(Group=H6,UPT),IF(Group=H6,PMT))) ->  | I26: =+IF(OR(SUM(UPT)=0,SUM(PMT)=0,I8=" ")," ",CORREL(IF(Group=I6,UPT),IF(Group=I6,PMT))) ->  | J26: =+IF(OR(SUM(UPT)=0,SUM(PMT)=0,J8=" ")," ",CORREL(IF(Group=J6,UPT),IF(Group=J6,PMT))) ->  | K26: =+IF(OR(SUM(UPT)=0,SUM(PMT)=0,K8=" ")," ",CORREL(IF(Group=K6,UPT),IF(Group=K6,PMT))) ->  | L26: =+IF(OR(SUM(UPT)=0,SUM(PMT)=0,L8=" ")," ",CORREL(IF(Group=L6,UPT),IF(Group=L6,PMT))) ->  | M26: =+IF(OR(SUM(UPT)=0,SUM(PMT)=0,M8=" ")," ",CORREL(IF(Group=M6,UPT),IF(Group=M6,PMT))) ->  | N26: =+IF(OR(SUM(UPT)=0,SUM(PMT)=0,N8=" ")," ",CORREL(IF(Group=N6,UPT),IF(Group=N6,PMT))) ->  | O26: N/A | Q26: UPT & PMT | S26: =+IF(OR(SUM(UPT_orig)=0,SUM(PMT_orig)=0)," ",CORREL(UPT_orig,PMT_orig)) ->  | T26: =+IF(OR(SUM(UPT_orig)=0,SUM(PMT_orig)=0,T8=" ")," ",CORREL(IF(Group_orig=T6,UPT_orig),IF(Group_orig=T6,PMT_orig))) ->  | U26: =+IF(OR(SUM(UPT_orig)=0,SUM(PMT_orig)=0,U8=" ")," ",CORREL(IF(Group_orig=U6,UPT_orig),IF(Group_orig=U6,PMT_orig))) ->  | V26: =+IF(OR(SUM(UPT_orig)=0,SUM(PMT_orig)=0,V8=" ")," ",CORREL(IF(Group_orig=V6,UPT_orig),IF(Group_orig=V6,PMT_orig))) ->  | W26: =+IF(OR(SUM(UPT_orig)=0,SUM(PMT_orig)=0,W8=" ")," ",CORREL(IF(Group_orig=W6,UPT_orig),IF(Group_orig=W6,PMT_orig))) ->  | X26: =+IF(OR(SUM(UPT_orig)=0,SUM(PMT_orig)=0,X8=" ")," ",CORREL(IF(Group_orig=X6,UPT_orig),IF(Group_orig=X6,PMT_orig))) ->  | Y26: =+IF(OR(SUM(UPT_orig)=0,SUM(PMT_orig)=0,Y8=" ")," ",CORREL(IF(Group_orig=Y6,UPT_orig),IF(Group_orig=Y6,PMT_orig))) ->  | Z26: =+IF(OR(SUM(UPT_orig)=0,SUM(PMT_orig)=0,Z8=" ")," ",CORREL(IF(Group_orig=Z6,UPT_orig),IF(Group_orig=Z6,PMT_orig))) ->  | AA26: =+IF(OR(SUM(UPT_orig)=0,SUM(PMT_orig)=0,AA8=" ")," ",CORREL(IF(Group_orig=AA6,UPT_orig),IF(Group_orig=AA6,PMT_orig))) ->  | AB26: =+IF(OR(SUM(UPT_orig)=0,SUM(PMT_orig)=0,AB8=" ")," ",CORREL(IF(Group_orig=AB6,UPT_orig),IF(Group_orig=AB6,PMT_orig))) ->  | AC26: =+IF(OR(SUM(UPT_orig)=0,SUM(PMT_orig)=0,AC8=" ")," ",CORREL(IF(Group_orig=AC6,UPT_orig),IF(Group_orig=AC6,PMT_orig))) ->  | AD26: N/A
B27: PMT & PPMT | D27: =+IF(OR(SUM(PMT)=0,SUM(PPMT)=0)," ",CORREL(PMT,PPMT)) -> 0.8622184849 | E27: =+IF(OR(SUM(PMT)=0,SUM(PPMT)=0,E8=" ")," ",CORREL(IF(Group=E6,PMT),IF(Group=E6,PPMT))) -> 0.8540813167 | F27: =+IF(OR(SUM(PMT)=0,SUM(PPMT)=0,F8=" ")," ",CORREL(IF(Group=F6,PMT),IF(Group=F6,PPMT))) -> 0.8775850532 | G27: =+IF(OR(SUM(PMT)=0,SUM(PPMT)=0,G8=" ")," ",CORREL(IF(Group=G6,PMT),IF(Group=G6,PPMT))) -> 0.9310384326 | H27: =+IF(OR(SUM(PMT)=0,SUM(PPMT)=0,H8=" ")," ",CORREL(IF(Group=H6,PMT),IF(Group=H6,PPMT))) ->  | I27: =+IF(OR(SUM(PMT)=0,SUM(PPMT)=0,I8=" ")," ",CORREL(IF(Group=I6,PMT),IF(Group=I6,PPMT))) ->  | J27: =+IF(OR(SUM(PMT)=0,SUM(PPMT)=0,J8=" ")," ",CORREL(IF(Group=J6,PMT),IF(Group=J6,PPMT))) ->  | K27: =+IF(OR(SUM(PMT)=0,SUM(PPMT)=0,K8=" ")," ",CORREL(IF(Group=K6,PMT),IF(Group=K6,PPMT))) ->  | L27: =+IF(OR(SUM(PMT)=0,SUM(PPMT)=0,L8=" ")," ",CORREL(IF(Group=L6,PMT),IF(Group=L6,PPMT))) ->  | M27: =+IF(OR(SUM(PMT)=0,SUM(PPMT)=0,M8=" ")," ",CORREL(IF(Group=M6,PMT),IF(Group=M6,PPMT))) ->  | N27: =+IF(OR(SUM(PMT)=0,SUM(PPMT)=0,N8=" ")," ",CORREL(IF(Group=N6,PMT),IF(Group=N6,PPMT))) ->  | O27: N/A | Q27: PMT & PPMT | S27: =+IF(OR(SUM(PMT_orig)=0,SUM(PPMT_orig)=0)," ",CORREL(PMT_orig,PPMT_orig)) ->  | T27: =+IF(OR(SUM(PMT_orig)=0,SUM(PPMT_orig)=0,T8=" ")," ",CORREL(IF(Group_orig=T6,PMT_orig),IF(Group_orig=T6,PPMT_orig))) ->  | U27: =+IF(OR(SUM(PMT_orig)=0,SUM(PPMT_orig)=0,U8=" ")," ",CORREL(IF(Group_orig=U6,PMT_orig),IF(Group_orig=U6,PPMT_orig))) ->  | V27: =+IF(OR(SUM(PMT_orig)=0,SUM(PPMT_orig)=0,V8=" ")," ",CORREL(IF(Group_orig=V6,PMT_orig),IF(Group_orig=V6,PPMT_orig))) ->  | W27: =+IF(OR(SUM(PMT_orig)=0,SUM(PPMT_orig)=0,W8=" ")," ",CORREL(IF(Group_orig=W6,PMT_orig),IF(Group_orig=W6,PPMT_orig))) ->  | X27: =+IF(OR(SUM(PMT_orig)=0,SUM(PPMT_orig)=0,X8=" ")," ",CORREL(IF(Group_orig=X6,PMT_orig),IF(Group_orig=X6,PPMT_orig))) ->  | Y27: =+IF(OR(SUM(PMT_orig)=0,SUM(PPMT_orig)=0,Y8=" ")," ",CORREL(IF(Group_orig=Y6,PMT_orig),IF(Group_orig=Y6,PPMT_orig))) ->  | Z27: =+IF(OR(SUM(PMT_orig)=0,SUM(PPMT_orig)=0,Z8=" ")," ",CORREL(IF(Group_orig=Z6,PMT_orig),IF(Group_orig=Z6,PPMT_orig))) ->  | AA27: =+IF(OR(SUM(PMT_orig)=0,SUM(PPMT_orig)=0,AA8=" ")," ",CORREL(IF(Group_orig=AA6,PMT_orig),IF(Group_orig=AA6,PPMT_orig))) ->  | AB27: =+IF(OR(SUM(PMT_orig)=0,SUM(PPMT_orig)=0,AB8=" ")," ",CORREL(IF(Group_orig=AB6,PMT_orig),IF(Group_orig=AB6,PPMT_orig))) ->  | AC27: =+IF(OR(SUM(PMT_orig)=0,SUM(PPMT_orig)=0,AC8=" ")," ",CORREL(IF(Group_orig=AC6,PMT_orig),IF(Group_orig=AC6,PPMT_orig))) ->  | AD27: N/A
B30: B. Description
B32: Measures
B33: Group Size in the Sample = the number of service units contained in the sample data that have been entered into INPUT.
B34: Average = sample mean
B35: Unit Coefficient of Variation = a statistical measure of the degree of variation in a particular variable. A lower value is more desirable.
B36: Correlation Coefficient = a statistical measure of how closely two variables relate to each other. It ranges between 0 and 1. A higher value is better.
B38: Variables
B39: UPT = unlinked passenger trips
B40: PMT = passenger miles traveled
B41: PPMT = UPT * average route length = potential passenger miles traveled
B42: APTL = PMT/UPT = average passegner trip length
B43: PMT/PPMT = ratio of PMT to PPMT = fraction of a route's length traveled by the average passenger

Sheet REVISION
B1: Information for Considering Plan Revision
B2: You must revise your sampling plan periodically to ensure that it continues to meet FTA's statistical standards. Please refer to the NTD Sampling Manual sections on "Revision" to learn when you must revise your plan. If this is your mandatory revision year as described in the manual, use this tab to revise your plan.
B3: A. Sample Size
C4: 55 | F4: 37 | H4: crit val | I4: groups? | J4: 100%? | K4: PPMT? | L4: Option
B5: Sample Size | C5: =CALCULATIONS!D8 -> 549 | E5: =COUNTIFS($P$27:$AB$27,"<="&C4) -> 6 | F5: =CALCULATIONS!S8 ->  | G5: =COUNTIFS($P$27:$AB$27,"<="&F4) -> 3 | H5: =INDEX(P28:AB40,G5,E5) -> 1.72 | I5: 1 | J5: =INPUT!M52 -> 1 | L5: =INDEX($B$10:$B$13,IF($J$5=0,1,IF($K$5=1,4,2)))&" - "&IF($I$5=1,D9,C9) -> APTL Option - 100% UPT Total - Grouping
L6: =INDEX($K$10:$L$13,IF($J$5=0,1,IF($K$5=1,4,IF(I5=1,3,2))),IF(I5=1,2,1)) -> 
B7: B. Statistical Variation by Efficiency Options
B9: Efficiency Options | C9: No Grouping | D9: Grouping | F9: Efficiency Options | G9: No Grouping | H9: Grouping | J9: Efficiency Options | K9: No Grouping | L9: Grouping
B10: Base Option | C10: =+IF(OR(CALCULATIONS!D19=" ",CALCULATIONS!D12=" ")," ",(CALCULATIONS!D19*CALCULATIONS!D12)^2) -> 6986.002273 | D10: =+IF(OR(CALCULATIONS!O19=" ",CALCULATIONS!O12=" ")," ",(CALCULATIONS!O19*CALCULATIONS!O12)^2) -> 5683.057268 | F10: Base Option | G10: =+IF(OR(CALCULATIONS!S19=" ",CALCULATIONS!S12=" ")," ",(CALCULATIONS!S19*CALCULATIONS!S12)^2) ->  | H10: =+IF(OR(CALCULATIONS!AD19=" ",CALCULATIONS!AD12=" ")," ",(CALCULATIONS!AD19*CALCULATIONS!AD12)^2) ->  | J10: Base Option | K10: =IFERROR(C10/G10,"") ->  | L10: =IFERROR(D10/H10,"") -> 
B11: APTL Option - 100% UPT Total | C11: =+IF(OR(CALCULATIONS!D21=" ",CALCULATIONS!D12=" ")," ",(CALCULATIONS!D21*CALCULATIONS!D12)^2) -> 1393.551608 | D11: =+IF(OR(CALCULATIONS!O$22=" ",CALCULATIONS!O$12=" ")," ",(CALCULATIONS!O$22*CALCULATIONS!O$12)^2) -> 1267.91945 | F11: APTL Option - 100% UPT Total | G11: =+IF(OR(CALCULATIONS!S21=" ",CALCULATIONS!S12=" ")," ",(CALCULATIONS!S21*CALCULATIONS!S12)^2) ->  | H11: =+IF(OR(CALCULATIONS!AD$22=" ",CALCULATIONS!AD$12=" ")," ",(CALCULATIONS!AD$22*CALCULATIONS!AD$12)^2) ->  | J11: APTL Option - 100% UPT Total | K11: =IFERROR(C11/G11,"") ->  | L11: =IFERROR(D11/H11,"") -> 
B12: APTL Option - 100% UPT by Group | C12: N/A | D12: =+IF(INPUT!M52=0,"",IF(OR(CALCULATIONS!O$21=" ",CALCULATIONS!O$12=" ")," ",(CALCULATIONS!O$21*CALCULATIONS!O$12)^2)) -> 1244.327266 | F12: APTL Option - 100% UPT by Group | G12: N/A | H12: =+IF(INPUT!M52=0,"",IF(OR(CALCULATIONS!AD$21=" ",CALCULATIONS!AD$12=" ")," ",(CALCULATIONS!AD$21*CALCULATIONS!AD$12)^2)) ->  | J12: APTL Option - 100% UPT by Group | K12: N/A | L12: =IFERROR(D12/H12,"") -> 
B13: PPMT Option | C13: =+IF(OR(CALCULATIONS!D23=" ",CALCULATIONS!D12=" ")," ",(CALCULATIONS!D23*CALCULATIONS!D12)^2) -> 2341.29912 | D13: =+IF(OR(CALCULATIONS!O23=" ",CALCULATIONS!O12=" ")," ",(CALCULATIONS!O23*CALCULATIONS!O12)^2) -> 1386.862842 | F13: PPMT Option | G13: =+IF(OR(CALCULATIONS!S23=" ",CALCULATIONS!S12=" ")," ",(CALCULATIONS!S23*CALCULATIONS!S12)^2) ->  | H13: =+IF(OR(CALCULATIONS!AD23=" ",CALCULATIONS!AD12=" ")," ",(CALCULATIONS!AD23*CALCULATIONS!AD12)^2) ->  | J13: PPMT Option | K13: =IFERROR(C13/G13,"") ->  | L13: =IFERROR(D13/H13,"") -> 
B15: Notes:
B16: 1. APTL Option - 100% UPT Total applies if cell M52 = 0 in the Input Worksheet.
B17: 2. APTL Option - 100% UPT by Group applies otherwise.
B18: Follow these steps to determine whether you need to revise your sampling plan:
B19: 1. Enter your most recent prior year sampling data in the INPUT tab, in the table starting in cell B71.
B20: 2. Enter the sampling data you used to develop your current sampling plan in the INPUT tab, in the table starting in cell J71. For example, if you used a Ready-to-Use Sampling Plan in 2023, then used the NTD Sampling Template in 2026, used the same plan in 2029, and are now revising your sampling plan for 2032, enter your 2029 sampling data in the table starting at B71, and your 2023 sampling data in the table starting at J71.
B21: 3. Make sure to enter a value in INPUT cell M52: If 100% counts of UPT are available by service group, enter 1 in cell M52. If not, enter 0.
B22: 4. If you use route grouping, enter the group sizes for the most recent prior year sample in the table starting in INPUT cell D34. For the original (older) sampling data, enter the group sizes starting in INPUT cell P34. Enter "1" in REVISION cell I5.
B23: 5. If you use the PPMT option, enter "1" in REVISION cell K5.
B24: 6. Confirm that REVISION cell L5 correctly describes your sampling method.
B25: 7. See the results below.
O26: Size of Base Sample | P26: Size of Current Sample
B27: =IF(L6<=H5,"You do not need to revise your sampling plan. Continue to use the same sampling plan as in your most recent prior year sample.","You must revise your sampling plan. Refer to the SAMPLING PLANS tab and select one of the plans according to the instructions on that tab.") -> You must revise your sampling plan. Refer to the SAMPLING PLANS tab and select one of the plans according to the instructions on that tab. | P27: 25 | Q27: 30 | R27: 35 | S27: 40 | T27: 45 | U27: 50 | V27: 75 | W27: 100 | X27: 150 | Y27: 200 | Z27: 300 | AA27: 400 | AB27: 600
O28: 25 | P28: 1.98 | Q28: 1.95 | R28: 1.92 | S28: 1.9 | T28: 1.88 | U28: 1.86 | V28: 1.82 | W28: 1.8 | X28: 1.78 | Y28: 1.77 | Z28: 1.76 | AA28: 1.75 | AB28: 1.74
B29: Q: How did the template come up with this answer? | O29: 30 | P29: 1.9 | Q29: 1.86 | R29: 1.83 | S29: 1.81 | T29: 1.79 | U29: 1.78 | V29: 1.73 | W29: 1.71 | X29: 1.69 | Y29: 1.67 | Z29: 1.66 | AA29: 1.66 | AB29: 1.65
B30: A: The template compares the statistical characteristics of your most recent sample to the original sample you used to develop your sampling plan. If your service has been fairly consistent since the original sample, the template will usually determine that your original plan is still valid. If you've had big changes in your service, you may need to change your sample size to ensure you're still getting data that meet FTA's requirements. | O30: 35 | P30: 1.84 | Q30: 1.8 | R30: 1.77 | S30: 1.75 | T30: 1.73 | U30: 1.72 | V30: 1.67 | W30: 1.65 | X30: 1.62 | Y30: 1.61 | Z30: 1.6 | AA30: 1.59 | AB30: 1.58
O31: 40 | P31: 1.8 | Q31: 1.76 | R31: 1.73 | S31: 1.7 | T31: 1.69 | U31: 1.67 | V31: 1.62 | W31: 1.6 | X31: 1.57 | Y31: 1.56 | Z31: 1.55 | AA31: 1.54 | AB31: 1.53
O32: 45 | P32: 1.77 | Q32: 1.73 | R32: 1.69 | S32: 1.67 | T32: 1.65 | U32: 1.64 | V32: 1.59 | W32: 1.56 | X32: 1.53 | Y32: 1.52 | Z32: 1.51 | AA32: 1.5 | AB32: 1.49
O33: 50 | P33: 1.74 | Q33: 1.7 | R33: 1.67 | S33: 1.64 | T33: 1.62 | U33: 1.61 | V33: 1.56 | W33: 1.53 | X33: 1.5 | Y33: 1.49 | Z33: 1.47 | AA33: 1.47 | AB33: 1.46
O34: 75 | P34: 1.67 | Q34: 1.62 | R34: 1.59 | S34: 1.56 | T34: 1.54 | U34: 1.52 | V34: 1.47 | W34: 1.44 | X34: 1.41 | Y34: 1.39 | Z34: 1.38 | AA34: 1.37 | AB34: 1.36
O35: 100 | P35: 1.63 | Q35: 1.58 | R35: 1.55 | S35: 1.52 | T35: 1.5 | U35: 1.48 | V35: 1.42 | W35: 1.39 | X35: 1.36 | Y35: 1.34 | Z35: 1.33 | AA35: 1.32 | AB35: 1.31
O36: 150 | P36: 1.59 | Q36: 1.54 | R36: 1.51 | S36: 1.48 | T36: 1.46 | U36: 1.44 | V36: 1.38 | W36: 1.35 | X36: 1.31 | Y36: 1.29 | Z36: 1.27 | AA36: 1.26 | AB36: 1.25
O37: 200 | P37: 1.57 | Q37: 1.52 | R37: 1.49 | S37: 1.46 | T37: 1.44 | U37: 1.42 | V37: 1.36 | W37: 1.32 | X37: 1.28 | Y37: 1.26 | Z37: 1.24 | AA37: 1.23 | AB37: 1.22
O38: 300 | P38: 1.55 | Q38: 1.51 | R38: 1.47 | S38: 1.44 | T38: 1.42 | U38: 1.4 | V38: 1.33 | W38: 1.3 | X38: 1.26 | Y38: 1.23 | Z38: 1.21 | AA38: 1.2 | AB38: 1.18
O39: 400 | P39: 1.54 | Q39: 1.5 | R39: 1.46 | S39: 1.43 | T39: 1.41 | U39: 1.39 | V39: 1.32 | W39: 1.28 | X39: 1.24 | Y39: 1.22 | Z39: 1.19 | AA39: 1.18 | AB39: 1.16
O40: 600 | P40: 1.54 | Q40: 1.49 | R40: 1.45 | S40: 1.42 | T40: 1.4 | U40: 1.38 | V40: 1.31 | W40: 1.27 | X40: 1.23 | Y40: 1.2 | Z40: 1.18 | AA40: 1.16 | AB40: 1.14

Sheet RANDOM SELECTOR TOOL
A1: Trip IDs | I1: Trips Selected for Sample
A2: 1 | B2: <--Paste your complete list of Trip IDs for the selection period in column A. | I2: 7
A3: 2 | B3: 5 | C3: <--Enter your sample size for the selection period in cell B3. | I3: 1
A4: 3 | C4: <--Click this button to check the data for errors. | I4: 3
A5: 4 | C5: <--Click this button to select your random sample. | I5: 2
A6: 5 | C6: Your sample will appear in column I. --> | I6: 8
A7: 9
A8: 6
A9: 7
A10: 8
